Workbook

Sheet Index
B1: AER opex model
B2: Index
B4: Model index
C6: Sheet Name | D6: Sheet Description
C7: Input | General | D7: Inputs NSP name, regulatory years for the prior and forecast regulatory control period etc.
C8: Input | Inflation | D8: Inputs inflation data.
C9: Input | Reported opex | D9: Inputs the reported operating expenditure (opex) from the prior regulatory control period.
C10: Input | Rate of change | D10: Inputs the cost escalation weights, cost escalation forecast, and inflation actuals and forecast
C11: Input | Step changes | D11: Inputs the operating expenditure (opex) data, including historical opex by category, one-off costs, step changes, demand forecasts, carbon costs, self insurance, network growth, and partial factor productivity
C12: Calc | Opex Forecast | D12: Calculates the opex forecast from RY2014 to RY2020
C13: Output | Models | D13: Outputs the opex forecast needed as a post tax revenue model input (which excludes debt raising costs).
C14: Lookup | Tables | D14: Includes the lookup tables used within this opex model.
C15: Check | List | D15: Shows checks on the calculations within the model
B17: End

Sheet Input|General
B1: =Index!$B$1 -> AER opex model | J1: Back to Index | L1: Key: | M1: Input | N1: External Link | O1: Internal Link | R1: Worksheet check: | S1: =IF(COUNTA($S$5:$S$13)=COUNTIF($S5:$S14,"OK"),"OK","Check") -> OK | U1: Overall Check: | V1: ='Check|List'!$S$1 -> Ok
B2: =Index!$C$7 -> Input | General
B4: Input | General inputs
C6: Inputs | D6: Source | G6: Value
C7: NSP name | D7: NSP | G7: Ergon Energy | S7: =IF(COUNTBLANK($G7),"Check","Ok") -> Ok
C8: Prior regulatory control period, first year | D8: NSP | G8: 2010-11 | S8: =IF(COUNTBLANK($G8),"Check","Ok") -> Ok
C9: Forecast base year | D9: NSP | G9: 2012-13 | S9: Ok
C10: Prior regulatory control period, last year | D10: NSP | G10: 2014-15 | S10: Ok
C11: Forecast regulatory control period, first year | D11: NSP | G11: 2015-16 | S11: Ok
C12: Forecast regulatory control period, last year | D12: NSP | G12: 2019-20 | S12: Ok
B14: End

Sheet Input|Inflation
B1: =Index!$B$1 -> AER opex model | J1: Back to Index | L1: Key: | M1: Input | N1: External Link | O1: Internal Link | R1: Worksheet check: | S1: =IF(COUNTA($S$5:$S$43)=COUNTIF($S5:$S44,"OK"),"OK","Check") -> OK | U1: Overall Check: | V1: ='Check|List'!$S$1 -> Ok
B2: =Index!$C$7 -> Input | General
B4: Input | General inputs
D6: Index value, old base | E6: Index value, new base
C7: Source | D7: ABS | E7: ABS
C8: Unit | D8: index | E8: index
C9: 2007-03-31 | D9: 155.6 | S9: =IF(COUNTBLANK($D9),"Check","Ok") -> Ok
C10: 2007-06-30 | D10: 157.5 | S10: Ok
C11: 2007-09-30 | D11: 158.6 | S11: Ok
C12: 2007-12-31 | D12: 160.1 | S12: Ok
C13: 2008-03-31 | D13: 162.2 | S13: Ok
C14: 2008-06-30 | D14: 164.6 | S14: Ok
C15: 2008-09-30 | D15: 166.5 | S15: Ok
C16: 2008-12-31 | D16: 166 | S16: Ok
C17: 2009-03-31 | D17: 166.2 | S17: Ok
C18: 2009-06-30 | D18: 167 | S18: Ok
C19: 2009-09-30 | D19: 168.6 | S19: Ok
C20: 2009-12-31 | D20: 169.5 | S20: Ok
C21: 2010-03-31 | D21: 171 | E21: 95.2 | S21: =IF(COUNTBLANK($D21:$E21),"Check","Ok") -> Ok
C22: 2010-06-30 | D22: 172.1 | E22: 95.8 | S22: Ok
C23: 2010-09-30 | D23: 173.3 | E23: 96.5 | S23: Ok
C24: 2010-12-31 | D24: 174 | E24: 96.9 | S24: Ok
C25: 2011-03-31 | D25: 176.7 | E25: 98.3 | S25: Ok
C26: 2011-06-30 | D26: 178.3 | E26: 99.2 | S26: Ok
C27: 2011-09-30 | D27: 179.4 | E27: 99.8 | S27: Ok
C28: 2011-12-31 | D28: 179.4 | E28: 99.8 | S28: Ok
C29: 2012-03-31 | D29: 179.5 | E29: 99.9 | S29: =IF(COUNTBLANK($E29),"Check","Ok") -> Ok
C30: 2012-06-30 | E30: 100.4 | S30: =IF(COUNTBLANK($E30),"Check","Ok") -> Ok
C31: 2012-09-30 | E31: 101.8 | S31: =IF(COUNTBLANK($E31),"Check","Ok") -> Ok
C32: 2012-12-31 | E32: 102 | S32: =IF(COUNTBLANK($E32),"Check","Ok") -> Ok
C33: 2013-03-31 | E33: 102.4 | S33: =IF(COUNTBLANK($E33),"Check","Ok") -> Ok
C34: 2013-06-30 | E34: 102.8 | S34: Ok
C35: 2013-09-30 | E35: 104 | S35: Ok
C36: 2013-12-31 | E36: 104.8 | S36: Ok
C37: 2014-03-31 | E37: 105.4 | S37: Ok
C38: 2014-06-30 | E38: 105.9 | S38: Ok
C39: 2014-09-30 | E39: 106.4 | S39: Ok
C40: 2014-12-31 | E40: 106.6 | S40: Ok
C41: 2015-03-31 | E41: =(E42/E40)^0.5*E40 -> 107.3066578 | F41: Interpolated between December 2014 actual and June 2015 estimate | S41: Ok
C42: 2015-06-30 | E42: =1.02*E38 -> 108.018 | F42: Estimate from RBA statement on monetary policy. | S42: Ok
B44: End

Sheet Input|Reported opex
C1: =Index!$B$1 -> AER opex model | J1: Back to Index | L1: Key: | M1: Input | N1: External Link | O1: Internal Link | R1: Worksheet check: | S1: =IF(COUNTA($W$32:$W$253)=COUNTIF($W$32:$W$253,"OK"),"OK","Check") -> OK | U1: Overall Check: | V1: ='Check|List'!$S$1 -> Ok
C2: =Index!$C$9 -> Input | Reported opex
D4: Source | E4: Unit | F4: Basis | J4: ='Input|General'!$G$8 -> 2010-11 | K4: =IF(OFFSET('Lookup|Tables'!$G$28:$G$43,MATCH('Input|General'!$G$8,'Lookup|Tables'!$G$28:$G$42,0)+1,0,1,1)<='Input|General'!$G$12,OFFSET('Lookup|Tables'!$G$28:$G$43,1,0,1,1),"") -> 2010-11 | L4: =IF(OFFSET('Lookup|Tables'!$G$28:$G$43,MATCH('Input|General'!$G$8,'Lookup|Tables'!$G$28:$G$42,0)+1,0,1,1)<='Input|General'!$G$12,OFFSET('Lookup|Tables'!$G$28:$G$43,MATCH('Input|General'!$G$8,'Lookup|Tables'!$G$28:$G$42,0)+1,0,1,1),"") -> 2012-13 | M4: =IF(OFFSET('Lookup|Tables'!$G$28:$G$43,MATCH('Input|General'!$G$8,'Lookup|Tables'!$G$28:$G$42,0)+2,0,1,1)<='Input|General'!$G$12,OFFSET('Lookup|Tables'!$G$28:$G$43,MATCH('Input|General'!$G$8,'Lookup|Tables'!$G$28:$G$42,0)+2,0,1,1),"") -> 2013-14 | N4: =IF(OFFSET('Lookup|Tables'!$G$28:$G$43,MATCH('Input|General'!$G$8,'Lookup|Tables'!$G$28:$G$42,0)+3,0,1,1)<='Input|General'!$G$12,OFFSET('Lookup|Tables'!$G$28:$G$43,MATCH('Input|General'!$G$8,'Lookup|Tables'!$G$28:$G$42,0)+3,0,1,1),"") -> 2014-15 | O4: =IF(OFFSET('Lookup|Tables'!$G$28:$G$43,MATCH('Input|General'!$G$8,'Lookup|Tables'!$G$28:$G$42,0)+4,0,1,1)<='Input|General'!$G$12,OFFSET('Lookup|Tables'!$G$28:$G$43,MATCH('Input|General'!$G$8,'Lookup|Tables'!$G$28:$G$42,0)+4,0,1,1),"") -> 2015-16 | P4: =IF(OFFSET('Lookup|Tables'!$G$28:$G$43,MATCH('Input|General'!$G$8,'Lookup|Tables'!$G$28:$G$42,0)+5,0,1,1)<='Input|General'!$G$12,OFFSET('Lookup|Tables'!$G$28:$G$43,MATCH('Input|General'!$G$8,'Lookup|Tables'!$G$28:$G$42,0)+5,0,1,1),"") -> 2016-17 | Q4: =IF(OFFSET('Lookup|Tables'!$G$28:$G$43,MATCH('Input|General'!$G$8,'Lookup|Tables'!$G$28:$G$42,0)+6,0,1,1)<='Input|General'!$G$12,OFFSET('Lookup|Tables'!$G$28:$G$43,MATCH('Input|General'!$G$8,'Lookup|Tables'!$G$28:$G$42,0)+6,0,1,1),"") -> 2017-18 | R4: =IF(OFFSET('Lookup|Tables'!$G$28:$G$43,MATCH('Input|General'!$G$8,'Lookup|Tables'!$G$28:$G$42,0)+7,0,1,1)<='Input|General'!$G$12,OFFSET('Lookup|Tables'!$G$28:$G$43,MATCH('Input|General'!$G$8,'Lookup|Tables'!$G$28:$G$42,0)+7,0,1,1),"") -> 2018-19 | S4: =IF(OFFSET('Lookup|Tables'!$G$28:$G$43,MATCH('Input|General'!$G$8,'Lookup|Tables'!$G$28:$G$42,0)+8,0,1,1)<='Input|General'!$G$12,OFFSET('Lookup|Tables'!$G$28:$G$43,MATCH('Input|General'!$G$8,'Lookup|Tables'!$G$28:$G$42,0)+8,0,1,1),"") -> 2019-20
B8: Input | Opex allowances
C10: Cost category | D10: Source | E10: Unit | F10: Basis | J10: =IF(RIGHT(J$4,2)<=RIGHT('Input|General'!$G$10,2),'Input|Reported opex'!J$4,"") -> 2010-11 | K10: =IF(RIGHT(K$4,2)<=RIGHT('Input|General'!$G$10,2),'Input|Reported opex'!K$4,"") -> 2010-11 | L10: =IF(RIGHT(L$4,2)<=RIGHT('Input|General'!$G$10,2),'Input|Reported opex'!L$4,"") -> 2012-13 | M10: =IF(RIGHT(M$4,2)<=RIGHT('Input|General'!$G$10,2),'Input|Reported opex'!M$4,"") -> 2013-14 | N10: =IF(RIGHT(N$4,2)<=RIGHT('Input|General'!$G$10,2),'Input|Reported opex'!N$4,"") -> 2014-15 | O10: =IF(RIGHT(O$4,2)<=RIGHT('Input|General'!$G$10,2),'Input|Reported opex'!O$4,"") ->  | P10: =IF(RIGHT(P$4,2)<=RIGHT('Input|General'!$G$10,2),'Input|Reported opex'!P$4,"") ->  | Q10: =IF(RIGHT(Q$4,2)<=RIGHT('Input|General'!$G$10,2),'Input|Reported opex'!Q$4,"") ->  | R10: =IF(RIGHT(R$4,2)<=RIGHT('Input|General'!$G$10,2),'Input|Reported opex'!R$4,"") ->  | S10: =IF(RIGHT(S$4,2)<=RIGHT('Input|General'!$G$10,2),'Input|Reported opex'!S$4,"") ->  | T10: Notes
C13: Total opex | D13: AER | E13: =$E$24 -> $millions | F13: 2009-10 | J13: 353.3134474 | K13: 370.4236671 | L13: 369.3307976 | M13: 366.0441446 | N13: 354.0974046
C14: Remove debt raising costs | D14: AER | E14: =$E$24 -> $millions | F14: 2009-10 | J14: -3.723701243 | K14: -4.096729069 | L14: -4.441296318 | M14: -4.79321985 | N14: -5.154305512
D15: AER | E15: $millions | F15: 2009-10
D16: AER | E16: $millions | F16: 2009-10
D17: AER | E17: $millions | F17: 2009-10
D18: AER | E18: $millions | F18: 2009-10
D19: AER | E19: $millions | F19: 2009-10
D20: AER | E20: $millions | F20: 2009-10
D21: AER | E21: $millions | F21: 2009-10
D22: AER | E22: $millions | F22: 2009-10
C24: Total opex | D24: Calculated | E24: $millions | F24: 2008-09 | J24: =SUM(J13:J22) -> 349.5897461 | K24: 366.326938 | L24: 364.8895013 | M24: 361.2509247 | N24: 348.9430991 | O24: 0 | P24: 0 | Q24: 0 | R24: 0 | S24: 0
B26: Input | Reported opex
J28: Actual | K28: Actual | L28: Actual | M28: Actual | N28: Estimate
C29: Cost category | D29: Source | E29: Unit | F29: Basis | J29: =IF(RIGHT(J4,2)<=RIGHT('Input|General'!$G$10,2),'Input|Reported opex'!J4,"") -> 2010-11 | K29: =IF(RIGHT(K4,2)<=RIGHT('Input|General'!$G$10,2),'Input|Reported opex'!K4,"") -> 2010-11 | L29: =IF(RIGHT(L4,2)<=RIGHT('Input|General'!$G$10,2),'Input|Reported opex'!L4,"") -> 2012-13 | M29: =IF(RIGHT(M4,2)<=RIGHT('Input|General'!$G$10,2),'Input|Reported opex'!M4,"") -> 2013-14 | N29: =IF(RIGHT(N4,2)<=RIGHT('Input|General'!$G$10,2),'Input|Reported opex'!N4,"") -> 2014-15 | O29: =IF(RIGHT(O4,2)<=RIGHT('Input|General'!$G$10,2),'Input|Reported opex'!O4,"") ->  | P29: =IF(RIGHT(P4,2)<=RIGHT('Input|General'!$G$10,2),'Input|Reported opex'!P4,"") ->  | Q29: =IF(RIGHT(Q4,2)<=RIGHT('Input|General'!$G$10,2),'Input|Reported opex'!Q4,"") ->  | R29: =IF(RIGHT(R4,2)<=RIGHT('Input|General'!$G$10,2),'Input|Reported opex'!R4,"") ->  | S29: =IF(RIGHT(S4,2)<=RIGHT('Input|General'!$G$10,2),'Input|Reported opex'!S4,"") ->  | T29: Notes
C32: Total opex | D32: RIN | E32: =$E$43 -> $millions | F32: =$F$43 -> nominal | J32: 387.498587 | K32: 437.595213 | L32: 422.137 | M32: 472.323
C33: Remove debt raising costs | D33: RIN | E33: =$E$43 -> $millions | F33: =$F$43 -> nominal | J33: -4.2948 | K33: -4.220043 | L33: -5.194 | M33: -4.359
C34: Remove feed-in tariff payments | D34: RIN | E34: $millions | F34: nominal | J34: -5.688419 | K34: -27.937563 | L34: -75.867 | M34: -120.083
D35: RIN | E35: $millions | F35: nominal
D36: RIN | E36: $millions | F36: nominal
D37: RIN | E37: $millions | F37: nominal
D38: RIN | E38: $millions | F38: nominal
D39: RIN | E39: $millions | F39: nominal
D40: RIN | E40: $millions | F40: nominal
D41: RIN | E41: $millions | F41: nominal
C43: Total opex | D43: Calculated | E43: $millions | F43: nominal | J43: =SUM(J32:J41) -> 377.515368 | K43: =SUM(K32:K41) -> 405.437607 | L43: 341.076 | M43: 347.881 | N43: 0 | O43: 0 | P43: 0 | Q43: 0 | R43: 0 | S43: 0
B45: Input | CAM adjustment
C47: Cost allocation method adjustment | D47: Source | E47: Unit | F47: Basis | J47: =IF(RIGHT(J$4,2)=RIGHT('Input|General'!$G$9,2),J$4,"") ->  | K47: =IF(RIGHT(K$4,2)=RIGHT('Input|General'!$G$9,2),K$4,"") ->  | L47: =IF(RIGHT(L$4,2)=RIGHT('Input|General'!$G$9,2),L$4,"") -> 2012-13 | M47: =IF(RIGHT(M$4,2)=RIGHT('Input|General'!$G$9,2),M$4,"") ->  | N47: =IF(RIGHT(N$4,2)=RIGHT('Input|General'!$G$9,2),N$4,"") -> 
C48: =C47 -> Cost allocation method adjustment | D48: External | E48: =$E$43 -> $millions | F48: =$F$43 -> nominal | L48: 0
B50: Input | Service classification adjustment
C52: Service classification adjustment | D52: Source | E52: Unit | F52: Basis | J52: =IF(RIGHT(J$4,2)=RIGHT('Input|General'!$G$9,2),J$4,"") ->  | K52: =IF(RIGHT(K$4,2)=RIGHT('Input|General'!$G$9,2),K$4,"") ->  | L52: =IF(RIGHT(L$4,2)=RIGHT('Input|General'!$G$9,2),L$4,"") -> 2012-13 | M52: =IF(RIGHT(M$4,2)=RIGHT('Input|General'!$G$9,2),M$4,"") ->  | N52: =IF(RIGHT(N$4,2)=RIGHT('Input|General'!$G$9,2),N$4,"") -> 
C53: =C52 -> Service classification adjustment | D53: External | E53: =$E$43 -> $millions | F53: =$F$43 -> nominal | L53: -20.24682675
B55: Input | Efficiency adjustment
C57: Efficiency adjustment | D57: Source | E57: Unit | J57: =IF(RIGHT(J$4,2)=RIGHT('Input|General'!$G$9,2),J$4,"") ->  | K57: =IF(RIGHT(K$4,2)=RIGHT('Input|General'!$G$9,2),K$4,"") ->  | L57: =IF(RIGHT(L$4,2)=RIGHT('Input|General'!$G$9,2),L$4,"") -> 2012-13 | M57: =IF(RIGHT(M$4,2)=RIGHT('Input|General'!$G$9,2),M$4,"") ->  | N57: =IF(RIGHT(N$4,2)=RIGHT('Input|General'!$G$9,2),N$4,"") -> 
C58: Efficiency adjustment | D58: External | E58: Per cent | L58: -0.1070209836
B60: End

Sheet Input|Rate of change
B1: =Index!$B$1 -> AER opex model | K1: Back to Index | M1: Key: | N1: Input | O1: External Link | P1: Internal Link | S1: Worksheet check: | T1: =IF(COUNTIF(W5:W96,"Check")=0,"Ok","Check") -> Ok | V1: Overall Check: | W1: ='Check|List'!$S$1 -> Ok
B2: =Index!$C$10 -> Input | Rate of change
D4: Source | E4: Unit | F4: Basis | J4: =IF(OFFSET('Lookup|Tables'!$G$26:$G$43,MATCH('Input|General'!$G$8,'Lookup|Tables'!$G$26:$G$42,0)-2,0,1,1)<='Input|General'!$G$12,OFFSET('Lookup|Tables'!$G$26:$G$43,MATCH('Input|General'!$G$8,'Lookup|Tables'!$G$26:$G$42,0)-2,0,1,1),"") -> 2009-10 | K4: ='Input|General'!$G$8 -> 2010-11 | L4: =IF(OFFSET('Lookup|Tables'!$G$26:$G$43,MATCH('Input|General'!$G$8,'Lookup|Tables'!$G$26:$G$42,0),0,1,1)<='Input|General'!$G$12,OFFSET('Lookup|Tables'!$G$26:$G$43,MATCH('Input|General'!$G$8,'Lookup|Tables'!$G$26:$G$42,0),0,1,1),"") -> 2011-12 | M4: =IF(OFFSET('Lookup|Tables'!$G$26:$G$43,MATCH('Input|General'!$G$8,'Lookup|Tables'!$G$26:$G$42,0)+1,0,1,1)<='Input|General'!$G$12,OFFSET('Lookup|Tables'!$G$26:$G$43,MATCH('Input|General'!$G$8,'Lookup|Tables'!$G$26:$G$42,0)+1,0,1,1),"") -> 2012-13 | N4: =IF(OFFSET('Lookup|Tables'!$G$26:$G$43,MATCH('Input|General'!$G$8,'Lookup|Tables'!$G$26:$G$42,0)+2,0,1,1)<='Input|General'!$G$12,OFFSET('Lookup|Tables'!$G$26:$G$43,MATCH('Input|General'!$G$8,'Lookup|Tables'!$G$26:$G$42,0)+2,0,1,1),"") -> 2013-14 | O4: =IF(OFFSET('Lookup|Tables'!$G$26:$G$43,MATCH('Input|General'!$G$8,'Lookup|Tables'!$G$26:$G$42,0)+3,0,1,1)<='Input|General'!$G$12,OFFSET('Lookup|Tables'!$G$26:$G$43,MATCH('Input|General'!$G$8,'Lookup|Tables'!$G$26:$G$42,0)+3,0,1,1),"") -> 2014-15 | P4: =IF(OFFSET('Lookup|Tables'!$G$26:$G$43,MATCH('Input|General'!$G$8,'Lookup|Tables'!$G$26:$G$42,0)+4,0,1,1)<='Input|General'!$G$12,OFFSET('Lookup|Tables'!$G$26:$G$43,MATCH('Input|General'!$G$8,'Lookup|Tables'!$G$26:$G$42,0)+4,0,1,1),"") -> 2015-16 | Q4: =IF(OFFSET('Lookup|Tables'!$G$26:$G$43,MATCH('Input|General'!$G$8,'Lookup|Tables'!$G$26:$G$42,0)+5,0,1,1)<='Input|General'!$G$12,OFFSET('Lookup|Tables'!$G$26:$G$43,MATCH('Input|General'!$G$8,'Lookup|Tables'!$G$26:$G$42,0)+5,0,1,1),"") -> 2016-17 | R4: =IF(OFFSET('Lookup|Tables'!$G$26:$G$43,MATCH('Input|General'!$G$8,'Lookup|Tables'!$G$26:$G$42,0)+6,0,1,1)<='Input|General'!$G$12,OFFSET('Lookup|Tables'!$G$26:$G$43,MATCH('Input|General'!$G$8,'Lookup|Tables'!$G$26:$G$42,0)+6,0,1,1),"") -> 2017-18 | S4: =IF(OFFSET('Lookup|Tables'!$G$26:$G$43,MATCH('Input|General'!$G$8,'Lookup|Tables'!$G$26:$G$42,0)+7,0,1,1)<='Input|General'!$G$12,OFFSET('Lookup|Tables'!$G$26:$G$43,MATCH('Input|General'!$G$8,'Lookup|Tables'!$G$26:$G$42,0)+7,0,1,1),"") -> 2018-19 | T4: =IF(OFFSET('Lookup|Tables'!$G$28:$G$43,MATCH('Input|General'!$G$8,'Lookup|Tables'!$G$28:$G$42,0)+8,0,1,1)<='Input|General'!$G$12,OFFSET('Lookup|Tables'!$G$28:$G$43,MATCH('Input|General'!$G$8,'Lookup|Tables'!$G$28:$G$42,0)+8,0,1,1),"") -> 2019-20
B8: Input | Inflation
C10: Inflation | J10: =J$4 -> 2009-10 | K10: =K$4 -> 2010-11 | L10: =L$4 -> 2011-12 | M10: 2012-13 | N10: 2013-14 | O10: 2014-15 | P10: 2015-16 | Q10: 2016-17 | R10: 2017-18 | S10: 2018-19 | T10: 2019-20
C12: Inflation | D12: calculated | E12: =percent -> Per cent | J12: ='Input|Inflation'!D22/'Input|Inflation'!D18-1 -> 0.03053892216 | K12: ='Input|Inflation'!$E26/'Input|Inflation'!$E22-1 -> 0.03549060543 | L12: ='Input|Inflation'!E30/'Input|Inflation'!E26-1 -> 0.01209677419 | M12: ='Input|Inflation'!E34/'Input|Inflation'!E30-1 -> 0.02390438247 | N12: ='Input|Inflation'!E38/'Input|Inflation'!E34-1 -> 0.03015564202 | O12: ='Input|Inflation'!E42/'Input|Inflation'!E38-1 -> 0.02
C14: CPI indexes (real to real) | J14: =J$4 -> 2009-10 | K14: =K$4 -> 2010-11 | L14: =L4 -> 2011-12 | M14: =M4 -> 2012-13 | N14: =N4 -> 2013-14 | O14: =O4 -> 2014-15
C16: ='Lookup|Tables'!C27 -> 2008-09 | D16: calculated | E16: index | J16: =(1+J$12) -> 1.030538922 | K16: =J16*(1+K$12) -> 1.067113372 | L16: 1.080022002 | M16: 1.105839261 | N16: 1.139186554 | O16: =N16*(1+O$12) -> 1.161970285
C17: ='Lookup|Tables'!C28 -> 2009-10 | D17: calculated | E17: index | J17: 1 | K17: =J17*(1+K$12) -> 1.035490605 | L17: 1.048016701 | M17: 1.073068894 | N17: 1.105427975 | O17: =N17*(1+O$12) -> 1.127536534
C18: ='Lookup|Tables'!C29 -> 2010-11 | D18: calculated | E18: index | J18: =K18/(1+K$12) -> 0.9657258065 | K18: 1 | L18: =K18*(1+L$12) -> 1.012096774 | M18: =L18*(1+M$12) -> 1.036290323 | N18: 1.067540323 | O18: 1.088891129
C19: ='Lookup|Tables'!C30 -> 2011-12 | D19: calculated | E19: index | J19: =K19/(1+K$12) -> 0.9541832669 | K19: =L19/(1+L$12) -> 0.9880478088 | L19: 1 | M19: =L19*(1+M$12) -> 1.023904382 | N19: 1.054780876 | O19: 1.075876494
C20: ='Lookup|Tables'!C31 -> 2012-13 | D20: calculated | E20: index | J20: =K20/(1+K$12) -> 0.9319066148 | K20: 0.9649805447 | L20: 0.9766536965 | M20: 1 | N20: =M20*(1+N$12) -> 1.030155642 | O20: 1.050758755
C21: ='Lookup|Tables'!C32 -> 2013-14 | D21: calculated | E21: index | J21: 0.9046270066 | K21: 0.9367327668 | L21: 0.9480642115 | M21: 0.970727101 | N21: 1 | O21: =N21*(1+O$12) -> 1.02
C22: ='Lookup|Tables'!C33 -> 2014-15 | D22: calculated | E22: index | J22: 0.8868892222 | K22: 0.9183654576 | L22: 0.9294747172 | M22: 0.9516932363 | N22: 0.9803921569 | O22: 1
C24: CPI indexes (nominal to real) | J24: =J10 -> 2009-10 | K24: 2010-11 | L24: 2011-12 | M24: 2012-13 | N24: 2013-14 | O24: 2014-15
C26: =C16 -> 2008-09 | D26: calculated | E26: index | J26: =1/J16*(1+J$12)^0.5 -> 0.9850716046 | K26: 0.953591825 | L26: 0.931490473 | M26: 0.9150349791 | N26: 0.8909566476 | O26: 0.8691706724
C27: 2009-10 | D27: calculated | E27: index | J27: 1.01515463 | K27: 0.9827134915 | L27: 0.959937188 | M27: 0.942979161 | N27: 0.9181655033 | O27: 0.8957142079
C28: 2010-11 | D28: calculated | E28: index | J28: 1.051183082 | K28: 1.017590588 | L28: 0.99400594 | M28: 0.9764460624 | N28: 0.9507517529 | O28: 0.9275036474
C29: 2011-12 | D29: calculated | E29: index | J29: 1.063899006 | K29: 1.029900152 | L29: 1.006030205 | M29: 0.9882579099 | N29: 0.9622527821 | O29: 0.9387234496
C30: 2012-13 | D30: calculated | E30: index | J30: 1.089330855 | K30: 1.054519279 | L30: 1.030078736 | M30: 1.011881605 | N30: 0.9852548407 | O30: 0.961163054
C31: 2013-14 | D31: calculated | E31: index | J31: 1.122180327 | K31: 1.086318985 | L31: 1.061141422 | M31: 1.042395544 | N31: 1.014965833 | O31: 0.990147543
C32: 2014-15 | D32: calculated | E32: index | J32: 1.144623933 | K32: 1.108045365 | L32: 1.08236425 | M32: 1.063243455 | N32: 1.03526515 | O32: 1.009950494
B34: Input | Forecast price change
C36: Forecast price change | D36: Source | E36: Unit | K36: =IF(RIGHT(K$4,2)>RIGHT('Input|General'!$G$9,2),IF(RIGHT(K$4,2)<='Input|General'!$G$12,'Input|Reported opex'!J$4,""),"") ->  | L36: =IF(RIGHT(L$4,2)>RIGHT('Input|General'!$G$9,2),IF(RIGHT(L$4,2)<='Input|General'!$G$12,'Input|Reported opex'!K$4,""),"") ->  | M36: =IF(RIGHT(M$4,2)>RIGHT('Input|General'!$G$9,2),IF(RIGHT(M$4,2)<='Input|General'!$G$12,'Input|Reported opex'!L$4,""),"") ->  | N36: =IF(RIGHT(N$4,2)>RIGHT('Input|General'!$G$9,2),IF(RIGHT(N$4,2)<='Input|General'!$G$12,'Input|Reported opex'!M$4,""),"") -> 2013-14 | O36: =IF(RIGHT(O$4,2)>RIGHT('Input|General'!$G$9,2),IF(RIGHT(O$4,2)<='Input|General'!$G$12,'Input|Reported opex'!N$4,""),"") -> 2014-15 | P36: =IF(RIGHT(P$4,2)>RIGHT('Input|General'!$G$9,2),IF(RIGHT(P$4,2)<='Input|General'!$G$12,'Input|Reported opex'!O$4,""),"") -> 2015-16 | Q36: =IF(RIGHT(Q$4,2)>RIGHT('Input|General'!$G$9,2),IF(RIGHT(Q$4,2)<='Input|General'!$G$12,'Input|Reported opex'!P$4,""),"") -> 2016-17 | R36: =IF(RIGHT(R$4,2)>RIGHT('Input|General'!$G$9,2),IF(RIGHT(R$4,2)<='Input|General'!$G$12,'Input|Reported opex'!Q$4,""),"") -> 2017-18 | S36: =IF(RIGHT(S$4,2)>RIGHT('Input|General'!$G$9,2),IF(RIGHT(S$4,2)<='Input|General'!$G$12,'Input|Reported opex'!R$4,""),"") -> 2018-19 | T36: =IF(RIGHT(T$4,2)>RIGHT('Input|General'!$G$9,2),IF(RIGHT(T$4,2)<='Input|General'!$G$12,'Input|Reported opex'!S$4,""),"") -> 2019-20
C38: WPI | D38: external | E38: =percent -> Per cent | N38: 0.003906666406 | O38: 0.003684916964 | P38: 0.003589675509 | Q38: 0.007361968579 | R38: 0.007247894016 | S38: 0.007405206707 | T38: 0.007733965227
D39: external | E39: Per cent
D40: external | E40: Per cent
D41: external | E41: Per cent
D42: external | E42: Per cent
D43: external | E43: Per cent
D44: external | E44: Per cent
C45: CPI | D45: external | E45: Per cent | N45: 0 | O45: 0 | P45: 0 | Q45: 0 | R45: 0 | S45: 0 | T45: 0
C47: Weights | D47: Source | E47: Unit | K47: =IF(RIGHT(K$4,2)>RIGHT('Input|General'!$G$9,2),IF(RIGHT(K$4,2)<='Input|General'!$G$12,'Input|Reported opex'!J$4,""),"") ->  | L47: =IF(RIGHT(L$4,2)>RIGHT('Input|General'!$G$9,2),IF(RIGHT(L$4,2)<='Input|General'!$G$12,'Input|Reported opex'!K$4,""),"") ->  | M47: =IF(RIGHT(M$4,2)>RIGHT('Input|General'!$G$9,2),IF(RIGHT(M$4,2)<='Input|General'!$G$12,'Input|Reported opex'!L$4,""),"") ->  | N47: =IF(RIGHT(N$4,2)>RIGHT('Input|General'!$G$9,2),IF(RIGHT(N$4,2)<='Input|General'!$G$12,'Input|Reported opex'!M$4,""),"") -> 2013-14 | O47: =IF(RIGHT(O$4,2)>RIGHT('Input|General'!$G$9,2),IF(RIGHT(O$4,2)<='Input|General'!$G$12,'Input|Reported opex'!N$4,""),"") -> 2014-15 | P47: =IF(RIGHT(P$4,2)>RIGHT('Input|General'!$G$9,2),IF(RIGHT(P$4,2)<='Input|General'!$G$12,'Input|Reported opex'!O$4,""),"") -> 2015-16 | Q47: =IF(RIGHT(Q$4,2)>RIGHT('Input|General'!$G$9,2),IF(RIGHT(Q$4,2)<='Input|General'!$G$12,'Input|Reported opex'!P$4,""),"") -> 2016-17 | R47: =IF(RIGHT(R$4,2)>RIGHT('Input|General'!$G$9,2),IF(RIGHT(R$4,2)<='Input|General'!$G$12,'Input|Reported opex'!Q$4,""),"") -> 2017-18 | S47: =IF(RIGHT(S$4,2)>RIGHT('Input|General'!$G$9,2),IF(RIGHT(S$4,2)<='Input|General'!$G$12,'Input|Reported opex'!R$4,""),"") -> 2018-19 | T47: =IF(RIGHT(T$4,2)>RIGHT('Input|General'!$G$9,2),IF(RIGHT(T$4,2)<='Input|General'!$G$12,'Input|Reported opex'!S$4,""),"") -> 2019-20
C49: =C38 -> WPI | D49: external | E49: =percent -> Per cent | N49: 0.62 | O49: 0.62 | P49: 0.62 | Q49: 0.62 | R49: 0.62 | S49: 0.62 | T49: 0.62
C50: =C39 -> 0 | D50: external | E50: Per cent
C51: 0 | D51: external | E51: Per cent
C52: 0 | D52: external | E52: Per cent
C53: 0 | D53: external | E53: Per cent
C54: 0 | D54: external | E54: Per cent
C55: 0 | D55: external | E55: Per cent
C56: CPI | D56: external | E56: Per cent | N56: 0.38 | O56: 0.38 | P56: 0.38 | Q56: 0.38 | R56: 0.38 | S56: 0.38 | T56: 0.38
C58: Check | D58: calculated | E58: Ok/Check | F58: n/a | N58: =IF(SUM(N49:N56)=1,"Ok","Check") -> Ok | O58: =IF(SUM(O49:O56)=1,"Ok","Check") -> Ok | P58: =IF(SUM(P49:P56)=1,"Ok","Check") -> Ok | Q58: =IF(SUM(Q49:Q56)=1,"Ok","Check") -> Ok | R58: Ok | S58: Ok | T58: Ok | W58: =IF(COUNTIF(K58:T58,"Check")=0,"Ok","Check") -> Ok
B60: Input | Forecast output growth
C62: Output measure | D62: Source | E62: Unit | F62: Basis | K62: =IF(RIGHT(K$4,2)>=RIGHT('Input|General'!$G$9,2),IF(RIGHT(K$4,2)<='Input|General'!$G$12,'Input|Reported opex'!J$4,""),"") ->  | L62: =IF(RIGHT(L$4,2)>=RIGHT('Input|General'!$G$9,2),IF(RIGHT(L$4,2)<='Input|General'!$G$12,'Input|Reported opex'!K$4,""),"") ->  | M62: =IF(RIGHT(M$4,2)>=RIGHT('Input|General'!$G$9,2),IF(RIGHT(M$4,2)<='Input|General'!$G$12,'Input|Reported opex'!L$4,""),"") -> 2012-13 | N62: =IF(RIGHT(N$4,2)>=RIGHT('Input|General'!$G$9,2),IF(RIGHT(N$4,2)<='Input|General'!$G$12,'Input|Reported opex'!M$4,""),"") -> 2013-14 | O62: =IF(RIGHT(O$4,2)>=RIGHT('Input|General'!$G$9,2),IF(RIGHT(O$4,2)<='Input|General'!$G$12,'Input|Reported opex'!N$4,""),"") -> 2014-15 | P62: =IF(RIGHT(P$4,2)>=RIGHT('Input|General'!$G$9,2),IF(RIGHT(P$4,2)<='Input|General'!$G$12,'Input|Reported opex'!O$4,""),"") -> 2015-16 | Q62: =IF(RIGHT(Q$4,2)>=RIGHT('Input|General'!$G$9,2),IF(RIGHT(Q$4,2)<='Input|General'!$G$12,'Input|Reported opex'!P$4,""),"") -> 2016-17 | R62: =IF(RIGHT(R$4,2)>=RIGHT('Input|General'!$G$9,2),IF(RIGHT(R$4,2)<='Input|General'!$G$12,'Input|Reported opex'!Q$4,""),"") -> 2017-18 | S62: =IF(RIGHT(S$4,2)>=RIGHT('Input|General'!$G$9,2),IF(RIGHT(S$4,2)<='Input|General'!$G$12,'Input|Reported opex'!R$4,""),"") -> 2018-19 | T62: =IF(RIGHT(T$4,2)>=RIGHT('Input|General'!$G$9,2),IF(RIGHT(T$4,2)<='Input|General'!$G$12,'Input|Reported opex'!S$4,""),"") -> 2019-20
C64: Customer numbers | D64: external | E64: number | F64: n/a | M64: 710431 | N64: 721930 | O64: 724663.451 | P64: 736528.5014 | Q64: 749758.1332 | R64: 762140.9142 | S64: 774667.2381 | T64: 787474.9783
C65: Circuit Length | D65: external | E65: number | F65: n/a | M65: 160109.803 | N65: 160083.4758 | O65: 160339.7306 | P65: 160755.3022 | Q65: 161203.9859 | R65: 161627.7462 | S65: 161855.6722 | T65: 162086.8726
C66: Ratcheted Maximum Demand | D66: external | E66: number | F66: n/a | M66: 4029.568907 | N66: 4029.568907 | O66: 4029.568907 | P66: 4029.568907 | Q66: 4060.881974 | R66: 4060.881974 | S66: 4148.745908 | T66: 4177.051853
D67: external | E67: number | F67: n/a
D68: external | E68: number | F68: n/a
D69: external | E69: number | F69: n/a
C71: Growth rate | D71: Source | E71: Unit | F71: Basis | K71: =IF(RIGHT(K$4,2)>RIGHT('Input|General'!$G$9,2),IF(RIGHT(K$4,2)<='Input|General'!$G$12,'Input|Reported opex'!J$4,""),"") ->  | L71: =IF(RIGHT(L$4,2)>RIGHT('Input|General'!$G$9,2),IF(RIGHT(L$4,2)<='Input|General'!$G$12,'Input|Reported opex'!K$4,""),"") ->  | M71: =IF(RIGHT(M$4,2)>RIGHT('Input|General'!$G$9,2),IF(RIGHT(M$4,2)<='Input|General'!$G$12,'Input|Reported opex'!L$4,""),"") ->  | N71: =IF(RIGHT(N$4,2)>RIGHT('Input|General'!$G$9,2),IF(RIGHT(N$4,2)<='Input|General'!$G$12,'Input|Reported opex'!M$4,""),"") -> 2013-14 | O71: =IF(RIGHT(O$4,2)>RIGHT('Input|General'!$G$9,2),IF(RIGHT(O$4,2)<='Input|General'!$G$12,'Input|Reported opex'!N$4,""),"") -> 2014-15 | P71: =IF(RIGHT(P$4,2)>RIGHT('Input|General'!$G$9,2),IF(RIGHT(P$4,2)<='Input|General'!$G$12,'Input|Reported opex'!O$4,""),"") -> 2015-16 | Q71: =IF(RIGHT(Q$4,2)>RIGHT('Input|General'!$G$9,2),IF(RIGHT(Q$4,2)<='Input|General'!$G$12,'Input|Reported opex'!P$4,""),"") -> 2016-17 | R71: =IF(RIGHT(R$4,2)>RIGHT('Input|General'!$G$9,2),IF(RIGHT(R$4,2)<='Input|General'!$G$12,'Input|Reported opex'!Q$4,""),"") -> 2017-18 | S71: =IF(RIGHT(S$4,2)>RIGHT('Input|General'!$G$9,2),IF(RIGHT(S$4,2)<='Input|General'!$G$12,'Input|Reported opex'!R$4,""),"") -> 2018-19 | T71: =IF(RIGHT(T$4,2)>RIGHT('Input|General'!$G$9,2),IF(RIGHT(T$4,2)<='Input|General'!$G$12,'Input|Reported opex'!S$4,""),"") -> 2019-20 | U71: =IF(RIGHT(U$4,2)>=RIGHT('Input|General'!$G$11,2),IF(RIGHT(U$4,2)<='Input|General'!$G$12,'Input|Reported opex'!T$4,""),"") -> 
C73: =C64 -> Customer numbers | D73: calculated | E73: number | F73: n/a | N73: =IF(ISBLANK(N64),"",LN(N64)-LN(M64)) -> 0.01605635317 | O73: 0.003779160325 | P73: =IF(ISBLANK(P64),"",LN(P64)-LN(O64)) -> 0.01624059197 | Q73: =IF(ISBLANK(Q64),"",LN(Q64)-LN(P64)) -> 0.01780273183 | R73: =IF(ISBLANK(R64),"",LN(R64)-LN(Q64)) -> 0.0163808 | S73: 0.01630210152 | T73: 0.01639802971
C74: =C65 -> Circuit Length | D74: calculated | E74: number | F74: n/a | N74: -0.0001644454979 | O74: 0.001599477317 | P74: =IF(ISBLANK(P65),"",LN(P65)-LN(O65)) -> 0.002588466125 | Q74: 0.002787209782 | R74: 0.002625272095 | S74: 0.001409197371 | T74: 0.001427416626
C75: Ratcheted Maximum Demand | D75: calculated | E75: number | F75: n/a | N75: 0 | O75: 0 | P75: =IF(ISBLANK(P66),"",LN(P66)-LN(O66)) -> 0 | Q75: 0.007740785954 | R75: 0 | S75: 0.02140591274 | T75: 0.006799601507
C76: 0 | D76: calculated | E76: number | F76: n/a | P76: =IF(ISBLANK(P67),"",LN(P67)-LN(O67)) -> 
C77: 0 | D77: calculated | E77: number | F77: n/a | P77: =IF(ISBLANK(P68),"",LN(P68)-LN(O68)) -> 
C78: 0 | D78: calculated | E78: number | F78: n/a | P78: =IF(ISBLANK(P69),"",LN(P69)-LN(O69)) -> 
C80: Weights
C82: =C64 -> Customer numbers | D82: external | E82: number | F82: n/a | M82: 0.6760829496
C83: =C65 -> Circuit Length | D83: external | E83: number | F83: n/a | M83: 0.1070273345
C84: Ratcheted Maximum Demand | D84: external | E84: number | F84: n/a | M84: 0.2168897159
C85: 0 | D85: external | E85: number | F85: n/a
C86: 0 | D86: external | E86: number | F86: n/a
C87: 0 | D87: external | E87: number | F87: n/a
C89: Check | D89: calculated | E89: Ok/Check | F89: n/a | M89: =IF(SUM(M82:M87)=1,"Ok","Check") -> Ok | W89: =IF(COUNTIF(K89:T89,"Check")=0,"Ok","Check") -> Ok
B91: Input | Forecast productivity
C93: Partial factor productivity | D93: Source | E93: Unit | F93: Basis | K93: =IF(RIGHT(K$4,2)>RIGHT('Input|General'!$G$9,2),IF(RIGHT(K$4,2)<='Input|General'!$G$12,'Input|Reported opex'!J$4,""),"") ->  | L93: =IF(RIGHT(L$4,2)>RIGHT('Input|General'!$G$9,2),IF(RIGHT(L$4,2)<='Input|General'!$G$12,'Input|Reported opex'!K$4,""),"") ->  | M93: =IF(RIGHT(M$4,2)>RIGHT('Input|General'!$G$9,2),IF(RIGHT(M$4,2)<='Input|General'!$G$12,'Input|Reported opex'!L$4,""),"") ->  | N93: =IF(RIGHT(N$4,2)>RIGHT('Input|General'!$G$9,2),IF(RIGHT(N$4,2)<='Input|General'!$G$12,'Input|Reported opex'!M$4,""),"") -> 2013-14 | O93: =IF(RIGHT(O$4,2)>RIGHT('Input|General'!$G$9,2),IF(RIGHT(O$4,2)<='Input|General'!$G$12,'Input|Reported opex'!N$4,""),"") -> 2014-15 | P93: =IF(RIGHT(P$4,2)>RIGHT('Input|General'!$G$9,2),IF(RIGHT(P$4,2)<='Input|General'!$G$12,'Input|Reported opex'!O$4,""),"") -> 2015-16 | Q93: =IF(RIGHT(Q$4,2)>RIGHT('Input|General'!$G$9,2),IF(RIGHT(Q$4,2)<='Input|General'!$G$12,'Input|Reported opex'!P$4,""),"") -> 2016-17 | R93: =IF(RIGHT(R$4,2)>RIGHT('Input|General'!$G$9,2),IF(RIGHT(R$4,2)<='Input|General'!$G$12,'Input|Reported opex'!Q$4,""),"") -> 2017-18 | S93: =IF(RIGHT(S$4,2)>RIGHT('Input|General'!$G$9,2),IF(RIGHT(S$4,2)<='Input|General'!$G$12,'Input|Reported opex'!R$4,""),"") -> 2018-19 | T93: =IF(RIGHT(T$4,2)>RIGHT('Input|General'!$G$9,2),IF(RIGHT(T$4,2)<='Input|General'!$G$12,'Input|Reported opex'!S$4,""),"") -> 2019-20
C95: Partial factor productivity | D95: external | E95: =percent -> Per cent | F95: n/a | N95: 0 | O95: 0 | P95: 0 | Q95: 0 | R95: 0 | S95: 0 | T95: 0
B97: End

Sheet Input|Step changes
B1: =Index!$B$1 -> AER opex model | J1: Back to Index | L1: Key: | M1: Input | N1: External Link | O1: Internal Link | R1: Worksheet check: | S1: =IF(COUNTA($W$8:$W$224)=COUNTIF($W$8:$W$224,"OK"),"OK","Check") -> OK | U1: Overall Check: | V1: ='Check|List'!$S$1 -> Ok
B2: =Index!$C$11 -> Input | Step changes
D4: Source | E4: Unit | F4: Basis | J4: ='Input|General'!$G$8 -> 2010-11 | K4: =IF(OFFSET('Lookup|Tables'!$G$28:$G$43,MATCH('Input|General'!$G$8,'Lookup|Tables'!$G$28:$G$42,0)+1,0,1,1)<='Input|General'!$G$12,OFFSET('Lookup|Tables'!$G$28:$G$43,1,0,1,1),"") -> 2010-11 | L4: =IF(OFFSET('Lookup|Tables'!$G$28:$G$43,MATCH('Input|General'!$G$8,'Lookup|Tables'!$G$28:$G$42,0)+1,0,1,1)<='Input|General'!$G$12,OFFSET('Lookup|Tables'!$G$28:$G$43,MATCH('Input|General'!$G$8,'Lookup|Tables'!$G$28:$G$42,0)+1,0,1,1),"") -> 2012-13 | M4: =IF(OFFSET('Lookup|Tables'!$G$28:$G$43,MATCH('Input|General'!$G$8,'Lookup|Tables'!$G$28:$G$42,0)+2,0,1,1)<='Input|General'!$G$12,OFFSET('Lookup|Tables'!$G$28:$G$43,MATCH('Input|General'!$G$8,'Lookup|Tables'!$G$28:$G$42,0)+2,0,1,1),"") -> 2013-14 | N4: =IF(OFFSET('Lookup|Tables'!$G$28:$G$43,MATCH('Input|General'!$G$8,'Lookup|Tables'!$G$28:$G$42,0)+3,0,1,1)<='Input|General'!$G$12,OFFSET('Lookup|Tables'!$G$28:$G$43,MATCH('Input|General'!$G$8,'Lookup|Tables'!$G$28:$G$42,0)+3,0,1,1),"") -> 2014-15 | O4: =IF(OFFSET('Lookup|Tables'!$G$28:$G$43,MATCH('Input|General'!$G$8,'Lookup|Tables'!$G$28:$G$42,0)+4,0,1,1)<='Input|General'!$G$12,OFFSET('Lookup|Tables'!$G$28:$G$43,MATCH('Input|General'!$G$8,'Lookup|Tables'!$G$28:$G$42,0)+4,0,1,1),"") -> 2015-16 | P4: =IF(OFFSET('Lookup|Tables'!$G$28:$G$43,MATCH('Input|General'!$G$8,'Lookup|Tables'!$G$28:$G$42,0)+5,0,1,1)<='Input|General'!$G$12,OFFSET('Lookup|Tables'!$G$28:$G$43,MATCH('Input|General'!$G$8,'Lookup|Tables'!$G$28:$G$42,0)+5,0,1,1),"") -> 2016-17 | Q4: =IF(OFFSET('Lookup|Tables'!$G$28:$G$43,MATCH('Input|General'!$G$8,'Lookup|Tables'!$G$28:$G$42,0)+6,0,1,1)<='Input|General'!$G$12,OFFSET('Lookup|Tables'!$G$28:$G$43,MATCH('Input|General'!$G$8,'Lookup|Tables'!$G$28:$G$42,0)+6,0,1,1),"") -> 2017-18 | R4: =IF(OFFSET('Lookup|Tables'!$G$28:$G$43,MATCH('Input|General'!$G$8,'Lookup|Tables'!$G$28:$G$42,0)+7,0,1,1)<='Input|General'!$G$12,OFFSET('Lookup|Tables'!$G$28:$G$43,MATCH('Input|General'!$G$8,'Lookup|Tables'!$G$28:$G$42,0)+7,0,1,1),"") -> 2018-19 | S4: =IF(OFFSET('Lookup|Tables'!$G$28:$G$43,MATCH('Input|General'!$G$8,'Lookup|Tables'!$G$28:$G$42,0)+8,0,1,1)<='Input|General'!$G$12,OFFSET('Lookup|Tables'!$G$28:$G$43,MATCH('Input|General'!$G$8,'Lookup|Tables'!$G$28:$G$42,0)+8,0,1,1),"") -> 2019-20
B8: Input |Step changes
C10: Step change | D10: Source | E10: Unit | F10: Basis | J10: =IF(RIGHT(J$4,2)>=RIGHT('Input|General'!$G$11,2),IF(RIGHT(J$4,2)<='Input|General'!$G$12,'Input|Reported opex'!J$4,""),"") ->  | K10: =IF(RIGHT(K$4,2)>=RIGHT('Input|General'!$G$11,2),IF(RIGHT(K$4,2)<='Input|General'!$G$12,'Input|Reported opex'!K$4,""),"") ->  | L10: =IF(RIGHT(L$4,2)>=RIGHT('Input|General'!$G$11,2),IF(RIGHT(L$4,2)<='Input|General'!$G$12,'Input|Reported opex'!L$4,""),"") ->  | M10: =IF(RIGHT(M$4,2)>=RIGHT('Input|General'!$G$11,2),IF(RIGHT(M$4,2)<='Input|General'!$G$12,'Input|Reported opex'!M$4,""),"") ->  | N10: =IF(RIGHT(N$4,2)>=RIGHT('Input|General'!$G$11,2),IF(RIGHT(N$4,2)<='Input|General'!$G$12,'Input|Reported opex'!N$4,""),"") ->  | O10: =IF(RIGHT(O$4,2)>=RIGHT('Input|General'!$G$11,2),IF(RIGHT(O$4,2)<='Input|General'!$G$12,'Input|Reported opex'!O$4,""),"") -> 2015-16 | P10: =IF(RIGHT(P$4,2)>=RIGHT('Input|General'!$G$11,2),IF(RIGHT(P$4,2)<='Input|General'!$G$12,'Input|Reported opex'!P$4,""),"") -> 2016-17 | Q10: =IF(RIGHT(Q$4,2)>=RIGHT('Input|General'!$G$11,2),IF(RIGHT(Q$4,2)<='Input|General'!$G$12,'Input|Reported opex'!Q$4,""),"") -> 2017-18 | R10: =IF(RIGHT(R$4,2)>=RIGHT('Input|General'!$G$11,2),IF(RIGHT(R$4,2)<='Input|General'!$G$12,'Input|Reported opex'!R$4,""),"") -> 2018-19 | S10: =IF(RIGHT(S$4,2)>=RIGHT('Input|General'!$G$11,2),IF(RIGHT(S$4,2)<='Input|General'!$G$12,'Input|Reported opex'!S$4,""),"") -> 2019-20
D12: AER | E12: $millions | F12: 2014-15
D13: AER | E13: $millions | F13: 2014-15
D14: AER | E14: $millions | F14: 2014-15
D15: AER | E15: $millions | F15: 2014-15
D16: AER | E16: $millions | F16: 2014-15
D17: AER | E17: $millions | F17: 2014-15
D18: AER | E18: $millions | F18: 2014-15
D19: AER | E19: $millions | F19: 2014-15
D20: AER | E20: $millions | F20: 2014-15
D21: AER | E21: $millions | F21: 2014-15
D22: AER | E22: $millions | F22: 2014-15
D23: AER | E23: $millions | F23: 2014-15
B25: Input | Debt raising costs
C27: Debt Raising Costs | D27: Source | E27: Unit | F27: Basis | J27: =IF(RIGHT(J$4,2)>=RIGHT('Input|General'!$G$11,2),IF(RIGHT(J$4,2)<='Input|General'!$G$12,'Input|Reported opex'!J$4,""),"") ->  | K27: =IF(RIGHT(K$4,2)>=RIGHT('Input|General'!$G$11,2),IF(RIGHT(K$4,2)<='Input|General'!$G$12,'Input|Reported opex'!K$4,""),"") ->  | L27: =IF(RIGHT(L$4,2)>=RIGHT('Input|General'!$G$11,2),IF(RIGHT(L$4,2)<='Input|General'!$G$12,'Input|Reported opex'!L$4,""),"") ->  | M27: =IF(RIGHT(M$4,2)>=RIGHT('Input|General'!$G$11,2),IF(RIGHT(M$4,2)<='Input|General'!$G$12,'Input|Reported opex'!M$4,""),"") ->  | N27: =IF(RIGHT(N$4,2)>=RIGHT('Input|General'!$G$11,2),IF(RIGHT(N$4,2)<='Input|General'!$G$12,'Input|Reported opex'!N$4,""),"") ->  | O27: =IF(RIGHT(O$4,2)>=RIGHT('Input|General'!$G$11,2),IF(RIGHT(O$4,2)<='Input|General'!$G$12,'Input|Reported opex'!O$4,""),"") -> 2015-16 | P27: =IF(RIGHT(P$4,2)>=RIGHT('Input|General'!$G$11,2),IF(RIGHT(P$4,2)<='Input|General'!$G$12,'Input|Reported opex'!P$4,""),"") -> 2016-17 | Q27: =IF(RIGHT(Q$4,2)>=RIGHT('Input|General'!$G$11,2),IF(RIGHT(Q$4,2)<='Input|General'!$G$12,'Input|Reported opex'!Q$4,""),"") -> 2017-18 | R27: =IF(RIGHT(R$4,2)>=RIGHT('Input|General'!$G$11,2),IF(RIGHT(R$4,2)<='Input|General'!$G$12,'Input|Reported opex'!R$4,""),"") -> 2018-19 | S27: =IF(RIGHT(S$4,2)>=RIGHT('Input|General'!$G$11,2),IF(RIGHT(S$4,2)<='Input|General'!$G$12,'Input|Reported opex'!S$4,""),"") -> 2019-20
C29: Debt raising costs | D29: PTRM | E29: $millions | F29: 2014-15
B31: End

Sheet Calc|Opex forecast
B1: =Index!$B$1 -> AER opex model | J1: Back to Index | L1: Key: | M1: Input | N1: External Link | O1: Internal Link | R1: Worksheet check: | S1: n/a | U1: Overall Check: | V1: ='Check|List'!$S$1 -> Ok
B2: =Index!$C$12 -> Calc | Opex Forecast
D4: Source | E4: Unit | F4: Basis | J4: ='Input|General'!$G$8 -> 2010-11 | K4: =IF(OFFSET('Lookup|Tables'!$G$28:$G$43,MATCH('Input|General'!$G$8,'Lookup|Tables'!$G$28:$G$42,0)+1,0,1,1)<='Input|General'!$G$12,OFFSET('Lookup|Tables'!$G$28:$G$43,1,0,1,1),"") -> 2010-11 | L4: =IF(OFFSET('Lookup|Tables'!$G$28:$G$43,MATCH('Input|General'!$G$8,'Lookup|Tables'!$G$28:$G$42,0)+1,0,1,1)<='Input|General'!$G$12,OFFSET('Lookup|Tables'!$G$28:$G$43,MATCH('Input|General'!$G$8,'Lookup|Tables'!$G$28:$G$42,0)+1,0,1,1),"") -> 2012-13 | M4: =IF(OFFSET('Lookup|Tables'!$G$28:$G$43,MATCH('Input|General'!$G$8,'Lookup|Tables'!$G$28:$G$42,0)+2,0,1,1)<='Input|General'!$G$12,OFFSET('Lookup|Tables'!$G$28:$G$43,MATCH('Input|General'!$G$8,'Lookup|Tables'!$G$28:$G$42,0)+2,0,1,1),"") -> 2013-14 | N4: =IF(OFFSET('Lookup|Tables'!$G$28:$G$43,MATCH('Input|General'!$G$8,'Lookup|Tables'!$G$28:$G$42,0)+3,0,1,1)<='Input|General'!$G$12,OFFSET('Lookup|Tables'!$G$28:$G$43,MATCH('Input|General'!$G$8,'Lookup|Tables'!$G$28:$G$42,0)+3,0,1,1),"") -> 2014-15 | O4: =IF(OFFSET('Lookup|Tables'!$G$28:$G$43,MATCH('Input|General'!$G$8,'Lookup|Tables'!$G$28:$G$42,0)+4,0,1,1)<='Input|General'!$G$12,OFFSET('Lookup|Tables'!$G$28:$G$43,MATCH('Input|General'!$G$8,'Lookup|Tables'!$G$28:$G$42,0)+4,0,1,1),"") -> 2015-16 | P4: =IF(OFFSET('Lookup|Tables'!$G$28:$G$43,MATCH('Input|General'!$G$8,'Lookup|Tables'!$G$28:$G$42,0)+5,0,1,1)<='Input|General'!$G$12,OFFSET('Lookup|Tables'!$G$28:$G$43,MATCH('Input|General'!$G$8,'Lookup|Tables'!$G$28:$G$42,0)+5,0,1,1),"") -> 2016-17 | Q4: =IF(OFFSET('Lookup|Tables'!$G$28:$G$43,MATCH('Input|General'!$G$8,'Lookup|Tables'!$G$28:$G$42,0)+6,0,1,1)<='Input|General'!$G$12,OFFSET('Lookup|Tables'!$G$28:$G$43,MATCH('Input|General'!$G$8,'Lookup|Tables'!$G$28:$G$42,0)+6,0,1,1),"") -> 2017-18 | R4: =IF(OFFSET('Lookup|Tables'!$G$28:$G$43,MATCH('Input|General'!$G$8,'Lookup|Tables'!$G$28:$G$42,0)+7,0,1,1)<='Input|General'!$G$12,OFFSET('Lookup|Tables'!$G$28:$G$43,MATCH('Input|General'!$G$8,'Lookup|Tables'!$G$28:$G$42,0)+7,0,1,1),"") -> 2018-19 | S4: =IF(OFFSET('Lookup|Tables'!$G$28:$G$43,MATCH('Input|General'!$G$8,'Lookup|Tables'!$G$28:$G$42,0)+8,0,1,1)<='Input|General'!$G$12,OFFSET('Lookup|Tables'!$G$28:$G$43,MATCH('Input|General'!$G$8,'Lookup|Tables'!$G$28:$G$42,0)+8,0,1,1),"") -> 2019-20
B8: Calc | Estimated final year expenditure | E8: $millions | F8: 2014-15
D10: Source | E10: Unit | F10: Basis | J10: =IF(RIGHT(J$4,2)=RIGHT('Input|General'!$G$9,2),J$4,"") ->  | K10: =IF(RIGHT(K$4,2)=RIGHT('Input|General'!$G$9,2),K$4,"") ->  | L10: =IF(RIGHT(L$4,2)=RIGHT('Input|General'!$G$9,2),L$4,"") -> 2012-13 | M10: =IF(RIGHT(M$4,2)=RIGHT('Input|General'!$G$9,2),M$4,"") ->  | N10: =IF(RIGHT(N$4,2)=RIGHT('Input|General'!$G$9,2),N$4,"") ->  | O10: =IF(RIGHT(O$4,2)=RIGHT('Input|General'!$G$9,2),O$4,"") ->  | P10: =IF(RIGHT(P$4,2)=RIGHT('Input|General'!$G$9,2),P$4,"") ->  | Q10: =IF(RIGHT(Q$4,2)=RIGHT('Input|General'!$G$9,2),Q$4,"") ->  | R10: =IF(RIGHT(R$4,2)=RIGHT('Input|General'!$G$9,2),R$4,"") ->  | S10: =IF(RIGHT(S$4,2)=RIGHT('Input|General'!$G$9,2),S$4,"") -> 
C12: Total reported opex | D12: Inputs|Reported opex | E12: ='Input|Reported opex'!E43 -> $millions | F12: ='Input|Reported opex'!F43 -> nominal | J12: =IF(J$10='Input|General'!$G$9,'Input|Reported opex'!J43,0) -> 0 | K12: =IF(K$10='Input|General'!$G$9,'Input|Reported opex'!K43,0) -> 0 | L12: =IF(L$10='Input|General'!$G$9,'Input|Reported opex'!L43,0) -> 341.076 | M12: =IF(M$10='Input|General'!$G$9,'Input|Reported opex'!M43,0) -> 0 | N12: =IF(N$10='Input|General'!$G$9,'Input|Reported opex'!N43,0) -> 0 | O12: =IF(O$10='Input|General'!$G$9,'Input|Reported opex'!O43,0) -> 0 | P12: =IF(P$10='Input|General'!$G$9,'Input|Reported opex'!P43,0) -> 0 | Q12: =IF(Q$10='Input|General'!$G$9,'Input|Reported opex'!Q43,0) -> 0 | R12: =IF(R$10='Input|General'!$G$9,'Input|Reported opex'!R43,0) -> 0 | S12: =IF(S$10='Input|General'!$G$9,'Input|Reported opex'!S43,0) -> 0
C13: Total reported opex | D13: Calculated | E13: =$E$8 -> $millions | F13: =$F$8 -> 2014-15 | J13: =J12*IF($F12="nominal",LOOKUP($F13,Nominal_to_Real,'Input|Rate of change'!K$26:K$32),INDEX('Input|Rate of change'!$C$14:$O$22,MATCH('Calc|Opex forecast'!$F12,'Input|Rate of change'!$C$14:$C$22,0),MATCH('Calc|Opex forecast'!$F13,'Input|Rate of change'!$C$14:$O$14,0)))*IF($E12="$millions",1000000,IF($E12="$000",1000,1))/IF($E13="$millions",1000000,IF($E13="$000",1000,1)) -> 0 | K13: =K12*IF($F12="nominal",LOOKUP($F13,Nominal_to_Real,'Input|Rate of change'!L$26:L$32),INDEX('Input|Rate of change'!$C$14:$O$22,MATCH('Calc|Opex forecast'!$F12,'Input|Rate of change'!$C$14:$C$22,0),MATCH('Calc|Opex forecast'!$F13,'Input|Rate of change'!$C$14:$O$14,0)))*IF($E12="$millions",1000000,IF($E12="$000",1000,1))/IF($E13="$millions",1000000,IF($E13="$000",1000,1)) -> 0 | L13: =L12*IF($F12="nominal",LOOKUP($F13,Nominal_to_Real,'Input|Rate of change'!M$26:M$32),INDEX('Input|Rate of change'!$C$14:$O$22,MATCH('Calc|Opex forecast'!$F12,'Input|Rate of change'!$C$14:$C$22,0),MATCH('Calc|Opex forecast'!$F13,'Input|Rate of change'!$C$14:$O$14,0)))*IF($E12="$millions",1000000,IF($E12="$000",1000,1))/IF($E13="$millions",1000000,IF($E13="$000",1000,1)) -> 362.6468248 | M13: =M12*IF($F12="nominal",LOOKUP($F13,Nominal_to_Real,'Input|Rate of change'!N$26:N$32),INDEX('Input|Rate of change'!$C$14:$O$22,MATCH('Calc|Opex forecast'!$F12,'Input|Rate of change'!$C$14:$C$22,0),MATCH('Calc|Opex forecast'!$F13,'Input|Rate of change'!$C$14:$O$14,0)))*IF($E12="$millions",1000000,IF($E12="$000",1000,1))/IF($E13="$millions",1000000,IF($E13="$000",1000,1)) -> 0 | N13: =N12*IF($F12="nominal",LOOKUP($F13,Nominal_to_Real,'Input|Rate of change'!O$26:O$32),INDEX('Input|Rate of change'!$C$14:$O$22,MATCH('Calc|Opex forecast'!$F12,'Input|Rate of change'!$C$14:$C$22,0),MATCH('Calc|Opex forecast'!$F13,'Input|Rate of change'!$C$14:$O$14,0)))*IF($E12="$millions",1000000,IF($E12="$000",1000,1))/IF($E13="$millions",1000000,IF($E13="$000",1000,1)) -> 0 | O13: =O12*IF($F12="nominal",LOOKUP($F13,Nominal_to_Real,'Input|Rate of change'!P$26:P$32),INDEX('Input|Rate of change'!$C$14:$O$22,MATCH('Calc|Opex forecast'!$F12,'Input|Rate of change'!$C$14:$C$22,0),MATCH('Calc|Opex forecast'!$F13,'Input|Rate of change'!$C$14:$O$14,0)))*IF($E12="$millions",1000000,IF($E12="$000",1000,1))/IF($E13="$millions",1000000,IF($E13="$000",1000,1)) -> 0 | P13: =P12*IF($F12="nominal",LOOKUP($F13,Nominal_to_Real,'Input|Rate of change'!Q$26:Q$32),INDEX('Input|Rate of change'!$C$14:$O$22,MATCH('Calc|Opex forecast'!$F12,'Input|Rate of change'!$C$14:$C$22,0),MATCH('Calc|Opex forecast'!$F13,'Input|Rate of change'!$C$14:$O$14,0)))*IF($E12="$millions",1000000,IF($E12="$000",1000,1))/IF($E13="$millions",1000000,IF($E13="$000",1000,1)) -> 0 | Q13: =Q12*IF($F12="nominal",LOOKUP($F13,Nominal_to_Real,'Input|Rate of change'!R$26:R$32),INDEX('Input|Rate of change'!$C$14:$O$22,MATCH('Calc|Opex forecast'!$F12,'Input|Rate of change'!$C$14:$C$22,0),MATCH('Calc|Opex forecast'!$F13,'Input|Rate of change'!$C$14:$O$14,0)))*IF($E12="$millions",1000000,IF($E12="$000",1000,1))/IF($E13="$millions",1000000,IF($E13="$000",1000,1)) -> 0 | R13: =R12*IF($F12="nominal",LOOKUP($F13,Nominal_to_Real,'Input|Rate of change'!S$26:S$32),INDEX('Input|Rate of change'!$C$14:$O$22,MATCH('Calc|Opex forecast'!$F12,'Input|Rate of change'!$C$14:$C$22,0),MATCH('Calc|Opex forecast'!$F13,'Input|Rate of change'!$C$14:$O$14,0)))*IF($E12="$millions",1000000,IF($E12="$000",1000,1))/IF($E13="$millions",1000000,IF($E13="$000",1000,1)) -> 0 | S13: =S12*IF($F12="nominal",LOOKUP($F13,Nominal_to_Real,'Input|Rate of change'!T$26:T$32),INDEX('Input|Rate of change'!$C$14:$O$22,MATCH('Calc|Opex forecast'!$F12,'Input|Rate of change'!$C$14:$C$22,0),MATCH('Calc|Opex forecast'!$F13,'Input|Rate of change'!$C$14:$O$14,0)))*IF($E12="$millions",1000000,IF($E12="$000",1000,1))/IF($E13="$millions",1000000,IF($E13="$000",1000,1)) -> 0
C15: Base year opex | D15: Calculated | E15: =$E$8 -> $millions | F15: =$F$8 -> 2014-15 | J15: =IF(J$10='Input|General'!$G$9,SUM($J13:$S13),0) -> 0 | K15: =IF(K$10='Input|General'!$G$9,SUM($J13:$S13),0) -> 0 | L15: =IF(L$10='Input|General'!$G$9,SUM($J13:$S13),0) -> 362.6468248 | M15: =IF(M$10='Input|General'!$G$9,SUM($J13:$S13),0) -> 0 | N15: =IF(N$10='Input|General'!$G$9,SUM($J13:$S13),0) -> 0 | O15: =IF(O$10='Input|General'!$G$9,SUM($J13:$S13),0) -> 0 | P15: =IF(P$10='Input|General'!$G$9,SUM($J13:$S13),0) -> 0 | Q15: =IF(Q$10='Input|General'!$G$9,SUM($J13:$S13),0) -> 0 | R15: =IF(R$10='Input|General'!$G$9,SUM($J13:$S13),0) -> 0 | S15: =IF(S$10='Input|General'!$G$9,SUM($J13:$S13),0) -> 0
C17: CAM adjustment | D17: Inputs|Reported opex | E17: ='Input|Reported opex'!E48 -> $millions | F17: ='Input|Reported opex'!F48 -> nominal | J17: =IF(J$10='Input|General'!$G$9,'Input|Reported opex'!J48,0) -> 0 | K17: =IF(K$10='Input|General'!$G$9,'Input|Reported opex'!K48,0) -> 0 | L17: =IF(L$10='Input|General'!$G$9,'Input|Reported opex'!L48,0) -> 0 | M17: =IF(M$10='Input|General'!$G$9,'Input|Reported opex'!M48,0) -> 0 | N17: =IF(N$10='Input|General'!$G$9,'Input|Reported opex'!N48,0) -> 0 | O17: =IF(O$10='Input|General'!$G$9,'Input|Reported opex'!O48,0) -> 0 | P17: =IF(P$10='Input|General'!$G$9,'Input|Reported opex'!P48,0) -> 0 | Q17: =IF(Q$10='Input|General'!$G$9,'Input|Reported opex'!Q48,0) -> 0 | R17: =IF(R$10='Input|General'!$G$9,'Input|Reported opex'!R48,0) -> 0 | S17: =IF(S$10='Input|General'!$G$9,'Input|Reported opex'!S48,0) -> 0
C18: =C17 -> CAM adjustment | D18: Calculated | E18: =$E$8 -> $millions | F18: =$F$8 -> 2014-15 | J18: =J17*IF($F17="nominal",LOOKUP($F18,Nominal_to_Real,'Input|Rate of change'!K$26:K$32),INDEX('Input|Rate of change'!$C$14:$O$22,MATCH('Calc|Opex forecast'!$F17,'Input|Rate of change'!$C$14:$C$22,0),MATCH('Calc|Opex forecast'!$F18,'Input|Rate of change'!$C$14:$O$14,0)))*IF($E17="$millions",1000000,IF($E17="$000",1000,1))/IF($E18="$millions",1000000,IF($E18="$000",1000,1)) -> 0 | K18: =K17*IF($F17="nominal",LOOKUP($F18,Nominal_to_Real,'Input|Rate of change'!L$26:L$32),INDEX('Input|Rate of change'!$C$14:$O$22,MATCH('Calc|Opex forecast'!$F17,'Input|Rate of change'!$C$14:$C$22,0),MATCH('Calc|Opex forecast'!$F18,'Input|Rate of change'!$C$14:$O$14,0)))*IF($E17="$millions",1000000,IF($E17="$000",1000,1))/IF($E18="$millions",1000000,IF($E18="$000",1000,1)) -> 0 | L18: =L17*IF($F17="nominal",LOOKUP($F18,Nominal_to_Real,'Input|Rate of change'!M$26:M$32),INDEX('Input|Rate of change'!$C$14:$O$22,MATCH('Calc|Opex forecast'!$F17,'Input|Rate of change'!$C$14:$C$22,0),MATCH('Calc|Opex forecast'!$F18,'Input|Rate of change'!$C$14:$O$14,0)))*IF($E17="$millions",1000000,IF($E17="$000",1000,1))/IF($E18="$millions",1000000,IF($E18="$000",1000,1)) -> 0 | M18: =M17*IF($F17="nominal",LOOKUP($F18,Nominal_to_Real,'Input|Rate of change'!N$26:N$32),INDEX('Input|Rate of change'!$C$14:$O$22,MATCH('Calc|Opex forecast'!$F17,'Input|Rate of change'!$C$14:$C$22,0),MATCH('Calc|Opex forecast'!$F18,'Input|Rate of change'!$C$14:$O$14,0)))*IF($E17="$millions",1000000,IF($E17="$000",1000,1))/IF($E18="$millions",1000000,IF($E18="$000",1000,1)) -> 0 | N18: =N17*IF($F17="nominal",LOOKUP($F18,Nominal_to_Real,'Input|Rate of change'!O$26:O$32),INDEX('Input|Rate of change'!$C$14:$O$22,MATCH('Calc|Opex forecast'!$F17,'Input|Rate of change'!$C$14:$C$22,0),MATCH('Calc|Opex forecast'!$F18,'Input|Rate of change'!$C$14:$O$14,0)))*IF($E17="$millions",1000000,IF($E17="$000",1000,1))/IF($E18="$millions",1000000,IF($E18="$000",1000,1)) -> 0 | O18: =O17*IF($F17="nominal",LOOKUP($F18,Nominal_to_Real,'Input|Rate of change'!P$26:P$32),INDEX('Input|Rate of change'!$C$14:$O$22,MATCH('Calc|Opex forecast'!$F17,'Input|Rate of change'!$C$14:$C$22,0),MATCH('Calc|Opex forecast'!$F18,'Input|Rate of change'!$C$14:$O$14,0)))*IF($E17="$millions",1000000,IF($E17="$000",1000,1))/IF($E18="$millions",1000000,IF($E18="$000",1000,1)) -> 0 | P18: =P17*IF($F17="nominal",LOOKUP($F18,Nominal_to_Real,'Input|Rate of change'!Q$26:Q$32),INDEX('Input|Rate of change'!$C$14:$O$22,MATCH('Calc|Opex forecast'!$F17,'Input|Rate of change'!$C$14:$C$22,0),MATCH('Calc|Opex forecast'!$F18,'Input|Rate of change'!$C$14:$O$14,0)))*IF($E17="$millions",1000000,IF($E17="$000",1000,1))/IF($E18="$millions",1000000,IF($E18="$000",1000,1)) -> 0 | Q18: =Q17*IF($F17="nominal",LOOKUP($F18,Nominal_to_Real,'Input|Rate of change'!R$26:R$32),INDEX('Input|Rate of change'!$C$14:$O$22,MATCH('Calc|Opex forecast'!$F17,'Input|Rate of change'!$C$14:$C$22,0),MATCH('Calc|Opex forecast'!$F18,'Input|Rate of change'!$C$14:$O$14,0)))*IF($E17="$millions",1000000,IF($E17="$000",1000,1))/IF($E18="$millions",1000000,IF($E18="$000",1000,1)) -> 0 | R18: =R17*IF($F17="nominal",LOOKUP($F18,Nominal_to_Real,'Input|Rate of change'!S$26:S$32),INDEX('Input|Rate of change'!$C$14:$O$22,MATCH('Calc|Opex forecast'!$F17,'Input|Rate of change'!$C$14:$C$22,0),MATCH('Calc|Opex forecast'!$F18,'Input|Rate of change'!$C$14:$O$14,0)))*IF($E17="$millions",1000000,IF($E17="$000",1000,1))/IF($E18="$millions",1000000,IF($E18="$000",1000,1)) -> 0 | S18: =S17*IF($F17="nominal",LOOKUP($F18,Nominal_to_Real,'Input|Rate of change'!T$26:T$32),INDEX('Input|Rate of change'!$C$14:$O$22,MATCH('Calc|Opex forecast'!$F17,'Input|Rate of change'!$C$14:$C$22,0),MATCH('Calc|Opex forecast'!$F18,'Input|Rate of change'!$C$14:$O$14,0)))*IF($E17="$millions",1000000,IF($E17="$000",1000,1))/IF($E18="$millions",1000000,IF($E18="$000",1000,1)) -> 0
C20: Service classification adjustment | D20: Inputs|Reported opex | E20: ='Input|Reported opex'!E53 -> $millions | F20: ='Input|Reported opex'!F53 -> nominal | J20: =IF(J$10='Input|General'!$G$9,'Input|Reported opex'!J53,0) -> 0 | K20: =IF(K$10='Input|General'!$G$9,'Input|Reported opex'!K53,0) -> 0 | L20: =IF(L$10='Input|General'!$G$9,'Input|Reported opex'!L53,0) -> -20.24682675 | M20: =IF(M$10='Input|General'!$G$9,'Input|Reported opex'!M53,0) -> 0 | N20: =IF(N$10='Input|General'!$G$9,'Input|Reported opex'!N53,0) -> 0 | O20: =IF(O$10='Input|General'!$G$9,'Input|Reported opex'!O53,0) -> 0 | P20: =IF(P$10='Input|General'!$G$9,'Input|Reported opex'!P53,0) -> 0 | Q20: =IF(Q$10='Input|General'!$G$9,'Input|Reported opex'!Q53,0) -> 0 | R20: =IF(R$10='Input|General'!$G$9,'Input|Reported opex'!R53,0) -> 0 | S20: =IF(S$10='Input|General'!$G$9,'Input|Reported opex'!S53,0) -> 0
C21: =C20 -> Service classification adjustment | D21: Calculated | E21: =$E$8 -> $millions | F21: =$F$8 -> 2014-15 | J21: =J20*IF($F20="nominal",LOOKUP($F21,Nominal_to_Real,'Input|Rate of change'!K$26:K$32),INDEX('Input|Rate of change'!$C$14:$O$22,MATCH('Calc|Opex forecast'!$F20,'Input|Rate of change'!$C$14:$C$22,0),MATCH('Calc|Opex forecast'!$F21,'Input|Rate of change'!$C$14:$O$14,0)))*IF($E20="$millions",1000000,IF($E20="$000",1000,1))/IF($E21="$millions",1000000,IF($E21="$000",1000,1)) -> 0 | K21: =K20*IF($F20="nominal",LOOKUP($F21,Nominal_to_Real,'Input|Rate of change'!L$26:L$32),INDEX('Input|Rate of change'!$C$14:$O$22,MATCH('Calc|Opex forecast'!$F20,'Input|Rate of change'!$C$14:$C$22,0),MATCH('Calc|Opex forecast'!$F21,'Input|Rate of change'!$C$14:$O$14,0)))*IF($E20="$millions",1000000,IF($E20="$000",1000,1))/IF($E21="$millions",1000000,IF($E21="$000",1000,1)) -> 0 | L21: =L20*IF($F20="nominal",LOOKUP($F21,Nominal_to_Real,'Input|Rate of change'!M$26:M$32),INDEX('Input|Rate of change'!$C$14:$O$22,MATCH('Calc|Opex forecast'!$F20,'Input|Rate of change'!$C$14:$C$22,0),MATCH('Calc|Opex forecast'!$F21,'Input|Rate of change'!$C$14:$O$14,0)))*IF($E20="$millions",1000000,IF($E20="$000",1000,1))/IF($E21="$millions",1000000,IF($E21="$000",1000,1)) -> -21.52730604 | M21: =M20*IF($F20="nominal",LOOKUP($F21,Nominal_to_Real,'Input|Rate of change'!N$26:N$32),INDEX('Input|Rate of change'!$C$14:$O$22,MATCH('Calc|Opex forecast'!$F20,'Input|Rate of change'!$C$14:$C$22,0),MATCH('Calc|Opex forecast'!$F21,'Input|Rate of change'!$C$14:$O$14,0)))*IF($E20="$millions",1000000,IF($E20="$000",1000,1))/IF($E21="$millions",1000000,IF($E21="$000",1000,1)) -> 0 | N21: =N20*IF($F20="nominal",LOOKUP($F21,Nominal_to_Real,'Input|Rate of change'!O$26:O$32),INDEX('Input|Rate of change'!$C$14:$O$22,MATCH('Calc|Opex forecast'!$F20,'Input|Rate of change'!$C$14:$C$22,0),MATCH('Calc|Opex forecast'!$F21,'Input|Rate of change'!$C$14:$O$14,0)))*IF($E20="$millions",1000000,IF($E20="$000",1000,1))/IF($E21="$millions",1000000,IF($E21="$000",1000,1)) -> 0 | O21: =O20*IF($F20="nominal",LOOKUP($F21,Nominal_to_Real,'Input|Rate of change'!P$26:P$32),INDEX('Input|Rate of change'!$C$14:$O$22,MATCH('Calc|Opex forecast'!$F20,'Input|Rate of change'!$C$14:$C$22,0),MATCH('Calc|Opex forecast'!$F21,'Input|Rate of change'!$C$14:$O$14,0)))*IF($E20="$millions",1000000,IF($E20="$000",1000,1))/IF($E21="$millions",1000000,IF($E21="$000",1000,1)) -> 0 | P21: =P20*IF($F20="nominal",LOOKUP($F21,Nominal_to_Real,'Input|Rate of change'!Q$26:Q$32),INDEX('Input|Rate of change'!$C$14:$O$22,MATCH('Calc|Opex forecast'!$F20,'Input|Rate of change'!$C$14:$C$22,0),MATCH('Calc|Opex forecast'!$F21,'Input|Rate of change'!$C$14:$O$14,0)))*IF($E20="$millions",1000000,IF($E20="$000",1000,1))/IF($E21="$millions",1000000,IF($E21="$000",1000,1)) -> 0 | Q21: =Q20*IF($F20="nominal",LOOKUP($F21,Nominal_to_Real,'Input|Rate of change'!R$26:R$32),INDEX('Input|Rate of change'!$C$14:$O$22,MATCH('Calc|Opex forecast'!$F20,'Input|Rate of change'!$C$14:$C$22,0),MATCH('Calc|Opex forecast'!$F21,'Input|Rate of change'!$C$14:$O$14,0)))*IF($E20="$millions",1000000,IF($E20="$000",1000,1))/IF($E21="$millions",1000000,IF($E21="$000",1000,1)) -> 0 | R21: =R20*IF($F20="nominal",LOOKUP($F21,Nominal_to_Real,'Input|Rate of change'!S$26:S$32),INDEX('Input|Rate of change'!$C$14:$O$22,MATCH('Calc|Opex forecast'!$F20,'Input|Rate of change'!$C$14:$C$22,0),MATCH('Calc|Opex forecast'!$F21,'Input|Rate of change'!$C$14:$O$14,0)))*IF($E20="$millions",1000000,IF($E20="$000",1000,1))/IF($E21="$millions",1000000,IF($E21="$000",1000,1)) -> 0 | S21: =S20*IF($F20="nominal",LOOKUP($F21,Nominal_to_Real,'Input|Rate of change'!T$26:T$32),INDEX('Input|Rate of change'!$C$14:$O$22,MATCH('Calc|Opex forecast'!$F20,'Input|Rate of change'!$C$14:$C$22,0),MATCH('Calc|Opex forecast'!$F21,'Input|Rate of change'!$C$14:$O$14,0)))*IF($E20="$millions",1000000,IF($E20="$000",1000,1))/IF($E21="$millions",1000000,IF($E21="$000",1000,1)) -> 0
C23: Efficiency adjustment | D23: calculated | E23: =$E$8 -> $millions | F23: =$F$8 -> 2014-15 | J23: =SUM(J15,J18,J21)*'Input|Reported opex'!J58 -> 0 | K23: =SUM(K15,K18,K21)*'Input|Reported opex'!K58 -> 0 | L23: =SUM(L15,L18,L21)*'Input|Reported opex'!L58 -> -36.50694641 | M23: =SUM(M15,M18,M21)*'Input|Reported opex'!M58 -> 0 | N23: =SUM(N15,N18,N21)*'Input|Reported opex'!N58 -> 0 | O23: =SUM(O15,O18,O21)*'Input|Reported opex'!O58 -> 0 | P23: =SUM(P15,P18,P21)*'Input|Reported opex'!P58 -> 0 | Q23: =SUM(Q15,Q18,Q21)*'Input|Reported opex'!Q58 -> 0 | R23: =SUM(R15,R18,R21)*'Input|Reported opex'!R58 -> 0 | S23: =SUM(S15,S18,S21)*'Input|Reported opex'!S58 -> 0
C25: Efficiency adjustment final year opex | D25: calculated | E25: =$E$8 -> $millions | F25: =$F$8 -> 2014-15 | J25: =SUM(J15,J18,J21,J23) -> 0 | K25: 0 | L25: 304.6125723 | M25: 0 | N25: =SUM(N15,N18,N21,N23) -> 0 | O25: 0 | P25: 0 | Q25: 0 | R25: 0 | S25: =SUM(S15,S18,S21,S23) -> 0
B27: Calc | Rate of change
C29: Rate of change | D29: Source | E29: Unit | F29: Basis | J29: =IF(RIGHT(J$4,2)>RIGHT('Input|General'!$G$9,2),IF(RIGHT(J$4,2)<='Input|General'!$G$12,'Input|Reported opex'!J$4,""),"") ->  | K29: =IF(RIGHT(K$4,2)>RIGHT('Input|General'!$G$9,2),IF(RIGHT(K$4,2)<='Input|General'!$G$12,'Input|Reported opex'!K$4,""),"") ->  | L29: =IF(RIGHT(L$4,2)>RIGHT('Input|General'!$G$9,2),IF(RIGHT(L$4,2)<='Input|General'!$G$12,'Input|Reported opex'!L$4,""),"") ->  | M29: =IF(RIGHT(M$4,2)>RIGHT('Input|General'!$G$9,2),IF(RIGHT(M$4,2)<='Input|General'!$G$12,'Input|Reported opex'!M$4,""),"") -> 2013-14 | N29: =IF(RIGHT(N$4,2)>RIGHT('Input|General'!$G$9,2),IF(RIGHT(N$4,2)<='Input|General'!$G$12,'Input|Reported opex'!N$4,""),"") -> 2014-15 | O29: =IF(RIGHT(O$4,2)>RIGHT('Input|General'!$G$9,2),IF(RIGHT(O$4,2)<='Input|General'!$G$12,'Input|Reported opex'!O$4,""),"") -> 2015-16 | P29: =IF(RIGHT(P$4,2)>RIGHT('Input|General'!$G$9,2),IF(RIGHT(P$4,2)<='Input|General'!$G$12,'Input|Reported opex'!P$4,""),"") -> 2016-17 | Q29: =IF(RIGHT(Q$4,2)>RIGHT('Input|General'!$G$9,2),IF(RIGHT(Q$4,2)<='Input|General'!$G$12,'Input|Reported opex'!Q$4,""),"") -> 2017-18 | R29: =IF(RIGHT(R$4,2)>RIGHT('Input|General'!$G$9,2),IF(RIGHT(R$4,2)<='Input|General'!$G$12,'Input|Reported opex'!R$4,""),"") -> 2018-19 | S29: =IF(RIGHT(S$4,2)>RIGHT('Input|General'!$G$9,2),IF(RIGHT(S$4,2)<='Input|General'!$G$12,'Input|Reported opex'!S$4,""),"") -> 2019-20
C32: Forecast output change | D32: Calculated | E32: Per cent | F32: n/a | J32: =SUMPRODUCT('Input|Rate of change'!K73:K78,'Input|Rate of change'!$M$82:$M$87) -> 0 | K32: =SUMPRODUCT('Input|Rate of change'!L73:L78,'Input|Rate of change'!$M$82:$M$87) -> 0 | L32: =SUMPRODUCT('Input|Rate of change'!M73:M78,'Input|Rate of change'!$M$82:$M$87) -> 0 | M32: =SUMPRODUCT('Input|Rate of change'!N73:N78,'Input|Rate of change'!$M$82:$M$87) -> 0.01083782645 | N32: =SUMPRODUCT('Input|Rate of change'!O73:O78,'Input|Rate of change'!$M$82:$M$87) -> 0.002726213654 | O32: =SUMPRODUCT('Input|Rate of change'!P73:P78,'Input|Rate of change'!$M$82:$M$87) -> 0.01125702395 | P32: =SUMPRODUCT('Input|Rate of change'!Q73:Q78,'Input|Rate of change'!$M$82:$M$87) -> 0.01401332795 | Q32: =SUMPRODUCT('Input|Rate of change'!R73:R78,'Input|Rate of change'!$M$82:$M$87) -> 0.01135575545 | R32: =SUMPRODUCT('Input|Rate of change'!S73:S78,'Input|Rate of change'!$M$82:$M$87) -> 0.01581511785 | S32: =SUMPRODUCT('Input|Rate of change'!T73:T78,'Input|Rate of change'!$M$82:$M$87) -> 0.01271396453
C34: Forecast price change | D34: Calculated | E34: Per cent | F34: n/a | J34: =SUMPRODUCT('Input|Rate of change'!K38:K45,'Input|Rate of change'!K49:K56) -> 0 | K34: =SUMPRODUCT('Input|Rate of change'!L38:L45,'Input|Rate of change'!L49:L56) -> 0 | L34: =SUMPRODUCT('Input|Rate of change'!M38:M45,'Input|Rate of change'!M49:M56) -> 0 | M34: =SUMPRODUCT('Input|Rate of change'!N38:N45,'Input|Rate of change'!N49:N56) -> 0.002422133172 | N34: =SUMPRODUCT('Input|Rate of change'!O38:O45,'Input|Rate of change'!O49:O56) -> 0.002284648518 | O34: =SUMPRODUCT('Input|Rate of change'!P38:P45,'Input|Rate of change'!P49:P56) -> 0.002225598816 | P34: =SUMPRODUCT('Input|Rate of change'!Q38:Q45,'Input|Rate of change'!Q49:Q56) -> 0.004564420519 | Q34: =SUMPRODUCT('Input|Rate of change'!R38:R45,'Input|Rate of change'!R49:R56) -> 0.00449369429 | R34: =SUMPRODUCT('Input|Rate of change'!S38:S45,'Input|Rate of change'!S49:S56) -> 0.004591228158 | S34: =SUMPRODUCT('Input|Rate of change'!T38:T45,'Input|Rate of change'!T49:T56) -> 0.004795058441
C36: Forecast productivity change | D36: Calculated | E36: Per cent | F36: n/a | J36: ='Input|Rate of change'!K95 -> 0 | K36: ='Input|Rate of change'!L95 -> 0 | L36: ='Input|Rate of change'!M95 -> 0 | M36: ='Input|Rate of change'!N95 -> 0 | N36: ='Input|Rate of change'!O95 -> 0 | O36: ='Input|Rate of change'!P95 -> 0 | P36: ='Input|Rate of change'!Q95 -> 0 | Q36: ='Input|Rate of change'!R95 -> 0 | R36: ='Input|Rate of change'!S95 -> 0 | S36: ='Input|Rate of change'!T95 -> 0
C38: Forecast rate of change | D38: Calculated | E38: Per cent | F38: n/a | J38: =(1+J32)*(1+J34)*(1-J36)-1 -> 0 | K38: =(1+K32)*(1+K34)*(1-K36)-1 -> 0 | L38: 0 | M38: 0.01328621028 | N38: 0.005017090611 | O38: 0.01350767638 | P38: 0.01864171119 | Q38: 0.01590047904 | R38: 0.02047895682 | S38: 0.01756998717
B40: Calc | Step changes
C42: Step changes | D42: Source | E42: Unit | F42: Basis | J42: =IF(RIGHT(J$4,2)>RIGHT('Input|General'!$G$9,2),IF(RIGHT(J$4,2)<='Input|General'!$G$12,'Input|Reported opex'!J$4,""),"") ->  | K42: =IF(RIGHT(K$4,2)>RIGHT('Input|General'!$G$9,2),IF(RIGHT(K$4,2)<='Input|General'!$G$12,'Input|Reported opex'!K$4,""),"") ->  | L42: =IF(RIGHT(L$4,2)>RIGHT('Input|General'!$G$9,2),IF(RIGHT(L$4,2)<='Input|General'!$G$12,'Input|Reported opex'!L$4,""),"") ->  | M42: =IF(RIGHT(M$4,2)>RIGHT('Input|General'!$G$9,2),IF(RIGHT(M$4,2)<='Input|General'!$G$12,'Input|Reported opex'!M$4,""),"") -> 2013-14 | N42: =IF(RIGHT(N$4,2)>RIGHT('Input|General'!$G$9,2),IF(RIGHT(N$4,2)<='Input|General'!$G$12,'Input|Reported opex'!N$4,""),"") -> 2014-15 | O42: =IF(RIGHT(O$4,2)>RIGHT('Input|General'!$G$9,2),IF(RIGHT(O$4,2)<='Input|General'!$G$12,'Input|Reported opex'!O$4,""),"") -> 2015-16 | P42: =IF(RIGHT(P$4,2)>RIGHT('Input|General'!$G$9,2),IF(RIGHT(P$4,2)<='Input|General'!$G$12,'Input|Reported opex'!P$4,""),"") -> 2016-17 | Q42: =IF(RIGHT(Q$4,2)>RIGHT('Input|General'!$G$9,2),IF(RIGHT(Q$4,2)<='Input|General'!$G$12,'Input|Reported opex'!Q$4,""),"") -> 2017-18 | R42: =IF(RIGHT(R$4,2)>RIGHT('Input|General'!$G$9,2),IF(RIGHT(R$4,2)<='Input|General'!$G$12,'Input|Reported opex'!R$4,""),"") -> 2018-19 | S42: =IF(RIGHT(S$4,2)>RIGHT('Input|General'!$G$9,2),IF(RIGHT(S$4,2)<='Input|General'!$G$12,'Input|Reported opex'!S$4,""),"") -> 2019-20
C44: ='Input|Step changes'!C12 -> 0 | D44: Calculated | E44: =$E$8 -> $millions | F44: =$F$8 -> 2014-15 | J44: ='Input|Step changes'!J12*IF('Input|Step changes'!$F12="nominal",LOOKUP($F44,Nominal_to_Real,'Input|Rate of change'!N$27:N$32),INDEX('Input|Rate of change'!$C$14:$O$22,MATCH('Input|Step changes'!$F12,'Input|Rate of change'!$C$14:$C$22,0),MATCH('Calc|Opex forecast'!$F44,'Input|Rate of change'!$C$14:$O$14,0)))*IF('Input|Step changes'!$E12="$millions",1000000,IF('Input|Step changes'!$E12="$000",1000,1))/IF($E44="$millions",1000000,IF($E44="$000",1000,1)) -> 0 | K44: ='Input|Step changes'!K12*IF('Input|Step changes'!$F12="nominal",LOOKUP($F44,Nominal_to_Real,'Input|Rate of change'!O$27:O$32),INDEX('Input|Rate of change'!$C$14:$O$22,MATCH('Input|Step changes'!$F12,'Input|Rate of change'!$C$14:$C$22,0),MATCH('Calc|Opex forecast'!$F44,'Input|Rate of change'!$C$14:$O$14,0)))*IF('Input|Step changes'!$E12="$millions",1000000,IF('Input|Step changes'!$E12="$000",1000,1))/IF($E44="$millions",1000000,IF($E44="$000",1000,1)) -> 0 | L44: ='Input|Step changes'!L12*IF('Input|Step changes'!$F12="nominal",LOOKUP($F44,Nominal_to_Real,'Input|Rate of change'!P$27:P$32),INDEX('Input|Rate of change'!$C$14:$O$22,MATCH('Input|Step changes'!$F12,'Input|Rate of change'!$C$14:$C$22,0),MATCH('Calc|Opex forecast'!$F44,'Input|Rate of change'!$C$14:$O$14,0)))*IF('Input|Step changes'!$E12="$millions",1000000,IF('Input|Step changes'!$E12="$000",1000,1))/IF($E44="$millions",1000000,IF($E44="$000",1000,1)) -> 0 | M44: ='Input|Step changes'!M12*IF('Input|Step changes'!$F12="nominal",LOOKUP($F44,Nominal_to_Real,'Input|Rate of change'!Q$27:Q$32),INDEX('Input|Rate of change'!$C$14:$O$22,MATCH('Input|Step changes'!$F12,'Input|Rate of change'!$C$14:$C$22,0),MATCH('Calc|Opex forecast'!$F44,'Input|Rate of change'!$C$14:$O$14,0)))*IF('Input|Step changes'!$E12="$millions",1000000,IF('Input|Step changes'!$E12="$000",1000,1))/IF($E44="$millions",1000000,IF($E44="$000",1000,1)) -> 0 | N44: ='Input|Step changes'!N12*IF('Input|Step changes'!$F12="nominal",LOOKUP($F44,Nominal_to_Real,'Input|Rate of change'!R$27:R$32),INDEX('Input|Rate of change'!$C$14:$O$22,MATCH('Input|Step changes'!$F12,'Input|Rate of change'!$C$14:$C$22,0),MATCH('Calc|Opex forecast'!$F44,'Input|Rate of change'!$C$14:$O$14,0)))*IF('Input|Step changes'!$E12="$millions",1000000,IF('Input|Step changes'!$E12="$000",1000,1))/IF($E44="$millions",1000000,IF($E44="$000",1000,1)) -> 0 | O44: ='Input|Step changes'!O12*IF('Input|Step changes'!$F12="nominal",LOOKUP($F44,Nominal_to_Real,'Input|Rate of change'!S$27:S$32),INDEX('Input|Rate of change'!$C$14:$O$22,MATCH('Input|Step changes'!$F12,'Input|Rate of change'!$C$14:$C$22,0),MATCH('Calc|Opex forecast'!$F44,'Input|Rate of change'!$C$14:$O$14,0)))*IF('Input|Step changes'!$E12="$millions",1000000,IF('Input|Step changes'!$E12="$000",1000,1))/IF($E44="$millions",1000000,IF($E44="$000",1000,1)) -> 0 | P44: ='Input|Step changes'!P12*IF('Input|Step changes'!$F12="nominal",LOOKUP($F44,Nominal_to_Real,'Input|Rate of change'!T$27:T$32),INDEX('Input|Rate of change'!$C$14:$O$22,MATCH('Input|Step changes'!$F12,'Input|Rate of change'!$C$14:$C$22,0),MATCH('Calc|Opex forecast'!$F44,'Input|Rate of change'!$C$14:$O$14,0)))*IF('Input|Step changes'!$E12="$millions",1000000,IF('Input|Step changes'!$E12="$000",1000,1))/IF($E44="$millions",1000000,IF($E44="$000",1000,1)) -> 0 | Q44: ='Input|Step changes'!Q12*IF('Input|Step changes'!$F12="nominal",LOOKUP($F44,Nominal_to_Real,'Input|Rate of change'!U$27:U$32),INDEX('Input|Rate of change'!$C$14:$O$22,MATCH('Input|Step changes'!$F12,'Input|Rate of change'!$C$14:$C$22,0),MATCH('Calc|Opex forecast'!$F44,'Input|Rate of change'!$C$14:$O$14,0)))*IF('Input|Step changes'!$E12="$millions",1000000,IF('Input|Step changes'!$E12="$000",1000,1))/IF($E44="$millions",1000000,IF($E44="$000",1000,1)) -> 0 | R44: ='Input|Step changes'!R12*IF('Input|Step changes'!$F12="nominal",LOOKUP($F44,Nominal_to_Real,'Input|Rate of change'!V$27:V$32),INDEX('Input|Rate of change'!$C$14:$O$22,MATCH('Input|Step changes'!$F12,'Input|Rate of change'!$C$14:$C$22,0),MATCH('Calc|Opex forecast'!$F44,'Input|Rate of change'!$C$14:$O$14,0)))*IF('Input|Step changes'!$E12="$millions",1000000,IF('Input|Step changes'!$E12="$000",1000,1))/IF($E44="$millions",1000000,IF($E44="$000",1000,1)) -> 0 | S44: ='Input|Step changes'!S12*IF('Input|Step changes'!$F12="nominal",LOOKUP($F44,Nominal_to_Real,'Input|Rate of change'!W$27:W$32),INDEX('Input|Rate of change'!$C$14:$O$22,MATCH('Input|Step changes'!$F12,'Input|Rate of change'!$C$14:$C$22,0),MATCH('Calc|Opex forecast'!$F44,'Input|Rate of change'!$C$14:$O$14,0)))*IF('Input|Step changes'!$E12="$millions",1000000,IF('Input|Step changes'!$E12="$000",1000,1))/IF($E44="$millions",1000000,IF($E44="$000",1000,1)) -> 0
C45: ='Input|Step changes'!C13 -> 0 | D45: Calculated | E45: $millions | F45: =$F$8 -> 2014-15 | J45: ='Input|Step changes'!J13*IF('Input|Step changes'!$F13="nominal",LOOKUP($F45,Nominal_to_Real,'Input|Rate of change'!N$27:N$32),INDEX('Input|Rate of change'!$C$14:$O$22,MATCH('Input|Step changes'!$F13,'Input|Rate of change'!$C$14:$C$22,0),MATCH('Calc|Opex forecast'!$F45,'Input|Rate of change'!$C$14:$O$14,0)))*IF('Input|Step changes'!$E13="$millions",1000000,IF('Input|Step changes'!$E13="$000",1000,1))/IF($E45="$millions",1000000,IF($E45="$000",1000,1)) -> 0 | K45: ='Input|Step changes'!K13*IF('Input|Step changes'!$F13="nominal",LOOKUP($F45,Nominal_to_Real,'Input|Rate of change'!O$27:O$32),INDEX('Input|Rate of change'!$C$14:$O$22,MATCH('Input|Step changes'!$F13,'Input|Rate of change'!$C$14:$C$22,0),MATCH('Calc|Opex forecast'!$F45,'Input|Rate of change'!$C$14:$O$14,0)))*IF('Input|Step changes'!$E13="$millions",1000000,IF('Input|Step changes'!$E13="$000",1000,1))/IF($E45="$millions",1000000,IF($E45="$000",1000,1)) -> 0 | L45: ='Input|Step changes'!L13*IF('Input|Step changes'!$F13="nominal",LOOKUP($F45,Nominal_to_Real,'Input|Rate of change'!P$27:P$32),INDEX('Input|Rate of change'!$C$14:$O$22,MATCH('Input|Step changes'!$F13,'Input|Rate of change'!$C$14:$C$22,0),MATCH('Calc|Opex forecast'!$F45,'Input|Rate of change'!$C$14:$O$14,0)))*IF('Input|Step changes'!$E13="$millions",1000000,IF('Input|Step changes'!$E13="$000",1000,1))/IF($E45="$millions",1000000,IF($E45="$000",1000,1)) -> 0 | M45: ='Input|Step changes'!M13*IF('Input|Step changes'!$F13="nominal",LOOKUP($F45,Nominal_to_Real,'Input|Rate of change'!Q$27:Q$32),INDEX('Input|Rate of change'!$C$14:$O$22,MATCH('Input|Step changes'!$F13,'Input|Rate of change'!$C$14:$C$22,0),MATCH('Calc|Opex forecast'!$F45,'Input|Rate of change'!$C$14:$O$14,0)))*IF('Input|Step changes'!$E13="$millions",1000000,IF('Input|Step changes'!$E13="$000",1000,1))/IF($E45="$millions",1000000,IF($E45="$000",1000,1)) -> 0 | N45: ='Input|Step changes'!N13*IF('Input|Step changes'!$F13="nominal",LOOKUP($F45,Nominal_to_Real,'Input|Rate of change'!R$27:R$32),INDEX('Input|Rate of change'!$C$14:$O$22,MATCH('Input|Step changes'!$F13,'Input|Rate of change'!$C$14:$C$22,0),MATCH('Calc|Opex forecast'!$F45,'Input|Rate of change'!$C$14:$O$14,0)))*IF('Input|Step changes'!$E13="$millions",1000000,IF('Input|Step changes'!$E13="$000",1000,1))/IF($E45="$millions",1000000,IF($E45="$000",1000,1)) -> 0 | O45: ='Input|Step changes'!O13*IF('Input|Step changes'!$F13="nominal",LOOKUP($F45,Nominal_to_Real,'Input|Rate of change'!S$27:S$32),INDEX('Input|Rate of change'!$C$14:$O$22,MATCH('Input|Step changes'!$F13,'Input|Rate of change'!$C$14:$C$22,0),MATCH('Calc|Opex forecast'!$F45,'Input|Rate of change'!$C$14:$O$14,0)))*IF('Input|Step changes'!$E13="$millions",1000000,IF('Input|Step changes'!$E13="$000",1000,1))/IF($E45="$millions",1000000,IF($E45="$000",1000,1)) -> 0 | P45: ='Input|Step changes'!P13*IF('Input|Step changes'!$F13="nominal",LOOKUP($F45,Nominal_to_Real,'Input|Rate of change'!T$27:T$32),INDEX('Input|Rate of change'!$C$14:$O$22,MATCH('Input|Step changes'!$F13,'Input|Rate of change'!$C$14:$C$22,0),MATCH('Calc|Opex forecast'!$F45,'Input|Rate of change'!$C$14:$O$14,0)))*IF('Input|Step changes'!$E13="$millions",1000000,IF('Input|Step changes'!$E13="$000",1000,1))/IF($E45="$millions",1000000,IF($E45="$000",1000,1)) -> 0 | Q45: ='Input|Step changes'!Q13*IF('Input|Step changes'!$F13="nominal",LOOKUP($F45,Nominal_to_Real,'Input|Rate of change'!U$27:U$32),INDEX('Input|Rate of change'!$C$14:$O$22,MATCH('Input|Step changes'!$F13,'Input|Rate of change'!$C$14:$C$22,0),MATCH('Calc|Opex forecast'!$F45,'Input|Rate of change'!$C$14:$O$14,0)))*IF('Input|Step changes'!$E13="$millions",1000000,IF('Input|Step changes'!$E13="$000",1000,1))/IF($E45="$millions",1000000,IF($E45="$000",1000,1)) -> 0 | R45: ='Input|Step changes'!R13*IF('Input|Step changes'!$F13="nominal",LOOKUP($F45,Nominal_to_Real,'Input|Rate of change'!V$27:V$32),INDEX('Input|Rate of change'!$C$14:$O$22,MATCH('Input|Step changes'!$F13,'Input|Rate of change'!$C$14:$C$22,0),MATCH('Calc|Opex forecast'!$F45,'Input|Rate of change'!$C$14:$O$14,0)))*IF('Input|Step changes'!$E13="$millions",1000000,IF('Input|Step changes'!$E13="$000",1000,1))/IF($E45="$millions",1000000,IF($E45="$000",1000,1)) -> 0 | S45: ='Input|Step changes'!S13*IF('Input|Step changes'!$F13="nominal",LOOKUP($F45,Nominal_to_Real,'Input|Rate of change'!W$27:W$32),INDEX('Input|Rate of change'!$C$14:$O$22,MATCH('Input|Step changes'!$F13,'Input|Rate of change'!$C$14:$C$22,0),MATCH('Calc|Opex forecast'!$F45,'Input|Rate of change'!$C$14:$O$14,0)))*IF('Input|Step changes'!$E13="$millions",1000000,IF('Input|Step changes'!$E13="$000",1000,1))/IF($E45="$millions",1000000,IF($E45="$000",1000,1)) -> 0
C46: ='Input|Step changes'!C14 -> 0 | D46: Calculated | E46: $millions | F46: 2014-15 | J46: ='Input|Step changes'!J14*IF('Input|Step changes'!$F14="nominal",LOOKUP($F46,Nominal_to_Real,'Input|Rate of change'!N$27:N$32),INDEX('Input|Rate of change'!$C$14:$O$22,MATCH('Input|Step changes'!$F14,'Input|Rate of change'!$C$14:$C$22,0),MATCH('Calc|Opex forecast'!$F46,'Input|Rate of change'!$C$14:$O$14,0)))*IF('Input|Step changes'!$E14="$millions",1000000,IF('Input|Step changes'!$E14="$000",1000,1))/IF($E46="$millions",1000000,IF($E46="$000",1000,1)) -> 0 | K46: ='Input|Step changes'!K14*IF('Input|Step changes'!$F14="nominal",LOOKUP($F46,Nominal_to_Real,'Input|Rate of change'!O$27:O$32),INDEX('Input|Rate of change'!$C$14:$O$22,MATCH('Input|Step changes'!$F14,'Input|Rate of change'!$C$14:$C$22,0),MATCH('Calc|Opex forecast'!$F46,'Input|Rate of change'!$C$14:$O$14,0)))*IF('Input|Step changes'!$E14="$millions",1000000,IF('Input|Step changes'!$E14="$000",1000,1))/IF($E46="$millions",1000000,IF($E46="$000",1000,1)) -> 0 | L46: ='Input|Step changes'!L14*IF('Input|Step changes'!$F14="nominal",LOOKUP($F46,Nominal_to_Real,'Input|Rate of change'!P$27:P$32),INDEX('Input|Rate of change'!$C$14:$O$22,MATCH('Input|Step changes'!$F14,'Input|Rate of change'!$C$14:$C$22,0),MATCH('Calc|Opex forecast'!$F46,'Input|Rate of change'!$C$14:$O$14,0)))*IF('Input|Step changes'!$E14="$millions",1000000,IF('Input|Step changes'!$E14="$000",1000,1))/IF($E46="$millions",1000000,IF($E46="$000",1000,1)) -> 0 | M46: ='Input|Step changes'!M14*IF('Input|Step changes'!$F14="nominal",LOOKUP($F46,Nominal_to_Real,'Input|Rate of change'!Q$27:Q$32),INDEX('Input|Rate of change'!$C$14:$O$22,MATCH('Input|Step changes'!$F14,'Input|Rate of change'!$C$14:$C$22,0),MATCH('Calc|Opex forecast'!$F46,'Input|Rate of change'!$C$14:$O$14,0)))*IF('Input|Step changes'!$E14="$millions",1000000,IF('Input|Step changes'!$E14="$000",1000,1))/IF($E46="$millions",1000000,IF($E46="$000",1000,1)) -> 0 | N46: ='Input|Step changes'!N14*IF('Input|Step changes'!$F14="nominal",LOOKUP($F46,Nominal_to_Real,'Input|Rate of change'!R$27:R$32),INDEX('Input|Rate of change'!$C$14:$O$22,MATCH('Input|Step changes'!$F14,'Input|Rate of change'!$C$14:$C$22,0),MATCH('Calc|Opex forecast'!$F46,'Input|Rate of change'!$C$14:$O$14,0)))*IF('Input|Step changes'!$E14="$millions",1000000,IF('Input|Step changes'!$E14="$000",1000,1))/IF($E46="$millions",1000000,IF($E46="$000",1000,1)) -> 0 | O46: ='Input|Step changes'!O14*IF('Input|Step changes'!$F14="nominal",LOOKUP($F46,Nominal_to_Real,'Input|Rate of change'!S$27:S$32),INDEX('Input|Rate of change'!$C$14:$O$22,MATCH('Input|Step changes'!$F14,'Input|Rate of change'!$C$14:$C$22,0),MATCH('Calc|Opex forecast'!$F46,'Input|Rate of change'!$C$14:$O$14,0)))*IF('Input|Step changes'!$E14="$millions",1000000,IF('Input|Step changes'!$E14="$000",1000,1))/IF($E46="$millions",1000000,IF($E46="$000",1000,1)) -> 0 | P46: ='Input|Step changes'!P14*IF('Input|Step changes'!$F14="nominal",LOOKUP($F46,Nominal_to_Real,'Input|Rate of change'!T$27:T$32),INDEX('Input|Rate of change'!$C$14:$O$22,MATCH('Input|Step changes'!$F14,'Input|Rate of change'!$C$14:$C$22,0),MATCH('Calc|Opex forecast'!$F46,'Input|Rate of change'!$C$14:$O$14,0)))*IF('Input|Step changes'!$E14="$millions",1000000,IF('Input|Step changes'!$E14="$000",1000,1))/IF($E46="$millions",1000000,IF($E46="$000",1000,1)) -> 0 | Q46: ='Input|Step changes'!Q14*IF('Input|Step changes'!$F14="nominal",LOOKUP($F46,Nominal_to_Real,'Input|Rate of change'!U$27:U$32),INDEX('Input|Rate of change'!$C$14:$O$22,MATCH('Input|Step changes'!$F14,'Input|Rate of change'!$C$14:$C$22,0),MATCH('Calc|Opex forecast'!$F46,'Input|Rate of change'!$C$14:$O$14,0)))*IF('Input|Step changes'!$E14="$millions",1000000,IF('Input|Step changes'!$E14="$000",1000,1))/IF($E46="$millions",1000000,IF($E46="$000",1000,1)) -> 0 | R46: ='Input|Step changes'!R14*IF('Input|Step changes'!$F14="nominal",LOOKUP($F46,Nominal_to_Real,'Input|Rate of change'!V$27:V$32),INDEX('Input|Rate of change'!$C$14:$O$22,MATCH('Input|Step changes'!$F14,'Input|Rate of change'!$C$14:$C$22,0),MATCH('Calc|Opex forecast'!$F46,'Input|Rate of change'!$C$14:$O$14,0)))*IF('Input|Step changes'!$E14="$millions",1000000,IF('Input|Step changes'!$E14="$000",1000,1))/IF($E46="$millions",1000000,IF($E46="$000",1000,1)) -> 0 | S46: ='Input|Step changes'!S14*IF('Input|Step changes'!$F14="nominal",LOOKUP($F46,Nominal_to_Real,'Input|Rate of change'!W$27:W$32),INDEX('Input|Rate of change'!$C$14:$O$22,MATCH('Input|Step changes'!$F14,'Input|Rate of change'!$C$14:$C$22,0),MATCH('Calc|Opex forecast'!$F46,'Input|Rate of change'!$C$14:$O$14,0)))*IF('Input|Step changes'!$E14="$millions",1000000,IF('Input|Step changes'!$E14="$000",1000,1))/IF($E46="$millions",1000000,IF($E46="$000",1000,1)) -> 0
C47: ='Input|Step changes'!C15 -> 0 | D47: Calculated | E47: $millions | F47: 2014-15 | J47: ='Input|Step changes'!J15*IF('Input|Step changes'!$F15="nominal",LOOKUP($F47,Nominal_to_Real,'Input|Rate of change'!N$27:N$32),INDEX('Input|Rate of change'!$C$14:$O$22,MATCH('Input|Step changes'!$F15,'Input|Rate of change'!$C$14:$C$22,0),MATCH('Calc|Opex forecast'!$F47,'Input|Rate of change'!$C$14:$O$14,0)))*IF('Input|Step changes'!$E15="$millions",1000000,IF('Input|Step changes'!$E15="$000",1000,1))/IF($E47="$millions",1000000,IF($E47="$000",1000,1)) -> 0 | K47: ='Input|Step changes'!K15*IF('Input|Step changes'!$F15="nominal",LOOKUP($F47,Nominal_to_Real,'Input|Rate of change'!O$27:O$32),INDEX('Input|Rate of change'!$C$14:$O$22,MATCH('Input|Step changes'!$F15,'Input|Rate of change'!$C$14:$C$22,0),MATCH('Calc|Opex forecast'!$F47,'Input|Rate of change'!$C$14:$O$14,0)))*IF('Input|Step changes'!$E15="$millions",1000000,IF('Input|Step changes'!$E15="$000",1000,1))/IF($E47="$millions",1000000,IF($E47="$000",1000,1)) -> 0 | L47: ='Input|Step changes'!L15*IF('Input|Step changes'!$F15="nominal",LOOKUP($F47,Nominal_to_Real,'Input|Rate of change'!P$27:P$32),INDEX('Input|Rate of change'!$C$14:$O$22,MATCH('Input|Step changes'!$F15,'Input|Rate of change'!$C$14:$C$22,0),MATCH('Calc|Opex forecast'!$F47,'Input|Rate of change'!$C$14:$O$14,0)))*IF('Input|Step changes'!$E15="$millions",1000000,IF('Input|Step changes'!$E15="$000",1000,1))/IF($E47="$millions",1000000,IF($E47="$000",1000,1)) -> 0 | M47: ='Input|Step changes'!M15*IF('Input|Step changes'!$F15="nominal",LOOKUP($F47,Nominal_to_Real,'Input|Rate of change'!Q$27:Q$32),INDEX('Input|Rate of change'!$C$14:$O$22,MATCH('Input|Step changes'!$F15,'Input|Rate of change'!$C$14:$C$22,0),MATCH('Calc|Opex forecast'!$F47,'Input|Rate of change'!$C$14:$O$14,0)))*IF('Input|Step changes'!$E15="$millions",1000000,IF('Input|Step changes'!$E15="$000",1000,1))/IF($E47="$millions",1000000,IF($E47="$000",1000,1)) -> 0 | N47: ='Input|Step changes'!N15*IF('Input|Step changes'!$F15="nominal",LOOKUP($F47,Nominal_to_Real,'Input|Rate of change'!R$27:R$32),INDEX('Input|Rate of change'!$C$14:$O$22,MATCH('Input|Step changes'!$F15,'Input|Rate of change'!$C$14:$C$22,0),MATCH('Calc|Opex forecast'!$F47,'Input|Rate of change'!$C$14:$O$14,0)))*IF('Input|Step changes'!$E15="$millions",1000000,IF('Input|Step changes'!$E15="$000",1000,1))/IF($E47="$millions",1000000,IF($E47="$000",1000,1)) -> 0 | O47: ='Input|Step changes'!O15*IF('Input|Step changes'!$F15="nominal",LOOKUP($F47,Nominal_to_Real,'Input|Rate of change'!S$27:S$32),INDEX('Input|Rate of change'!$C$14:$O$22,MATCH('Input|Step changes'!$F15,'Input|Rate of change'!$C$14:$C$22,0),MATCH('Calc|Opex forecast'!$F47,'Input|Rate of change'!$C$14:$O$14,0)))*IF('Input|Step changes'!$E15="$millions",1000000,IF('Input|Step changes'!$E15="$000",1000,1))/IF($E47="$millions",1000000,IF($E47="$000",1000,1)) -> 0 | P47: ='Input|Step changes'!P15*IF('Input|Step changes'!$F15="nominal",LOOKUP($F47,Nominal_to_Real,'Input|Rate of change'!T$27:T$32),INDEX('Input|Rate of change'!$C$14:$O$22,MATCH('Input|Step changes'!$F15,'Input|Rate of change'!$C$14:$C$22,0),MATCH('Calc|Opex forecast'!$F47,'Input|Rate of change'!$C$14:$O$14,0)))*IF('Input|Step changes'!$E15="$millions",1000000,IF('Input|Step changes'!$E15="$000",1000,1))/IF($E47="$millions",1000000,IF($E47="$000",1000,1)) -> 0 | Q47: ='Input|Step changes'!Q15*IF('Input|Step changes'!$F15="nominal",LOOKUP($F47,Nominal_to_Real,'Input|Rate of change'!U$27:U$32),INDEX('Input|Rate of change'!$C$14:$O$22,MATCH('Input|Step changes'!$F15,'Input|Rate of change'!$C$14:$C$22,0),MATCH('Calc|Opex forecast'!$F47,'Input|Rate of change'!$C$14:$O$14,0)))*IF('Input|Step changes'!$E15="$millions",1000000,IF('Input|Step changes'!$E15="$000",1000,1))/IF($E47="$millions",1000000,IF($E47="$000",1000,1)) -> 0 | R47: ='Input|Step changes'!R15*IF('Input|Step changes'!$F15="nominal",LOOKUP($F47,Nominal_to_Real,'Input|Rate of change'!V$27:V$32),INDEX('Input|Rate of change'!$C$14:$O$22,MATCH('Input|Step changes'!$F15,'Input|Rate of change'!$C$14:$C$22,0),MATCH('Calc|Opex forecast'!$F47,'Input|Rate of change'!$C$14:$O$14,0)))*IF('Input|Step changes'!$E15="$millions",1000000,IF('Input|Step changes'!$E15="$000",1000,1))/IF($E47="$millions",1000000,IF($E47="$000",1000,1)) -> 0 | S47: ='Input|Step changes'!S15*IF('Input|Step changes'!$F15="nominal",LOOKUP($F47,Nominal_to_Real,'Input|Rate of change'!W$27:W$32),INDEX('Input|Rate of change'!$C$14:$O$22,MATCH('Input|Step changes'!$F15,'Input|Rate of change'!$C$14:$C$22,0),MATCH('Calc|Opex forecast'!$F47,'Input|Rate of change'!$C$14:$O$14,0)))*IF('Input|Step changes'!$E15="$millions",1000000,IF('Input|Step changes'!$E15="$000",1000,1))/IF($E47="$millions",1000000,IF($E47="$000",1000,1)) -> 0
C48: ='Input|Step changes'!C16 -> 0 | D48: Calculated | E48: $millions | F48: 2014-15 | J48: ='Input|Step changes'!J16*IF('Input|Step changes'!$F16="nominal",LOOKUP($F48,Nominal_to_Real,'Input|Rate of change'!N$27:N$32),INDEX('Input|Rate of change'!$C$14:$O$22,MATCH('Input|Step changes'!$F16,'Input|Rate of change'!$C$14:$C$22,0),MATCH('Calc|Opex forecast'!$F48,'Input|Rate of change'!$C$14:$O$14,0)))*IF('Input|Step changes'!$E16="$millions",1000000,IF('Input|Step changes'!$E16="$000",1000,1))/IF($E48="$millions",1000000,IF($E48="$000",1000,1)) -> 0 | K48: ='Input|Step changes'!K16*IF('Input|Step changes'!$F16="nominal",LOOKUP($F48,Nominal_to_Real,'Input|Rate of change'!O$27:O$32),INDEX('Input|Rate of change'!$C$14:$O$22,MATCH('Input|Step changes'!$F16,'Input|Rate of change'!$C$14:$C$22,0),MATCH('Calc|Opex forecast'!$F48,'Input|Rate of change'!$C$14:$O$14,0)))*IF('Input|Step changes'!$E16="$millions",1000000,IF('Input|Step changes'!$E16="$000",1000,1))/IF($E48="$millions",1000000,IF($E48="$000",1000,1)) -> 0 | L48: ='Input|Step changes'!L16*IF('Input|Step changes'!$F16="nominal",LOOKUP($F48,Nominal_to_Real,'Input|Rate of change'!P$27:P$32),INDEX('Input|Rate of change'!$C$14:$O$22,MATCH('Input|Step changes'!$F16,'Input|Rate of change'!$C$14:$C$22,0),MATCH('Calc|Opex forecast'!$F48,'Input|Rate of change'!$C$14:$O$14,0)))*IF('Input|Step changes'!$E16="$millions",1000000,IF('Input|Step changes'!$E16="$000",1000,1))/IF($E48="$millions",1000000,IF($E48="$000",1000,1)) -> 0 | M48: ='Input|Step changes'!M16*IF('Input|Step changes'!$F16="nominal",LOOKUP($F48,Nominal_to_Real,'Input|Rate of change'!Q$27:Q$32),INDEX('Input|Rate of change'!$C$14:$O$22,MATCH('Input|Step changes'!$F16,'Input|Rate of change'!$C$14:$C$22,0),MATCH('Calc|Opex forecast'!$F48,'Input|Rate of change'!$C$14:$O$14,0)))*IF('Input|Step changes'!$E16="$millions",1000000,IF('Input|Step changes'!$E16="$000",1000,1))/IF($E48="$millions",1000000,IF($E48="$000",1000,1)) -> 0 | N48: ='Input|Step changes'!N16*IF('Input|Step changes'!$F16="nominal",LOOKUP($F48,Nominal_to_Real,'Input|Rate of change'!R$27:R$32),INDEX('Input|Rate of change'!$C$14:$O$22,MATCH('Input|Step changes'!$F16,'Input|Rate of change'!$C$14:$C$22,0),MATCH('Calc|Opex forecast'!$F48,'Input|Rate of change'!$C$14:$O$14,0)))*IF('Input|Step changes'!$E16="$millions",1000000,IF('Input|Step changes'!$E16="$000",1000,1))/IF($E48="$millions",1000000,IF($E48="$000",1000,1)) -> 0 | O48: ='Input|Step changes'!O16*IF('Input|Step changes'!$F16="nominal",LOOKUP($F48,Nominal_to_Real,'Input|Rate of change'!S$27:S$32),INDEX('Input|Rate of change'!$C$14:$O$22,MATCH('Input|Step changes'!$F16,'Input|Rate of change'!$C$14:$C$22,0),MATCH('Calc|Opex forecast'!$F48,'Input|Rate of change'!$C$14:$O$14,0)))*IF('Input|Step changes'!$E16="$millions",1000000,IF('Input|Step changes'!$E16="$000",1000,1))/IF($E48="$millions",1000000,IF($E48="$000",1000,1)) -> 0 | P48: ='Input|Step changes'!P16*IF('Input|Step changes'!$F16="nominal",LOOKUP($F48,Nominal_to_Real,'Input|Rate of change'!T$27:T$32),INDEX('Input|Rate of change'!$C$14:$O$22,MATCH('Input|Step changes'!$F16,'Input|Rate of change'!$C$14:$C$22,0),MATCH('Calc|Opex forecast'!$F48,'Input|Rate of change'!$C$14:$O$14,0)))*IF('Input|Step changes'!$E16="$millions",1000000,IF('Input|Step changes'!$E16="$000",1000,1))/IF($E48="$millions",1000000,IF($E48="$000",1000,1)) -> 0 | Q48: ='Input|Step changes'!Q16*IF('Input|Step changes'!$F16="nominal",LOOKUP($F48,Nominal_to_Real,'Input|Rate of change'!U$27:U$32),INDEX('Input|Rate of change'!$C$14:$O$22,MATCH('Input|Step changes'!$F16,'Input|Rate of change'!$C$14:$C$22,0),MATCH('Calc|Opex forecast'!$F48,'Input|Rate of change'!$C$14:$O$14,0)))*IF('Input|Step changes'!$E16="$millions",1000000,IF('Input|Step changes'!$E16="$000",1000,1))/IF($E48="$millions",1000000,IF($E48="$000",1000,1)) -> 0 | R48: ='Input|Step changes'!R16*IF('Input|Step changes'!$F16="nominal",LOOKUP($F48,Nominal_to_Real,'Input|Rate of change'!V$27:V$32),INDEX('Input|Rate of change'!$C$14:$O$22,MATCH('Input|Step changes'!$F16,'Input|Rate of change'!$C$14:$C$22,0),MATCH('Calc|Opex forecast'!$F48,'Input|Rate of change'!$C$14:$O$14,0)))*IF('Input|Step changes'!$E16="$millions",1000000,IF('Input|Step changes'!$E16="$000",1000,1))/IF($E48="$millions",1000000,IF($E48="$000",1000,1)) -> 0 | S48: ='Input|Step changes'!S16*IF('Input|Step changes'!$F16="nominal",LOOKUP($F48,Nominal_to_Real,'Input|Rate of change'!W$27:W$32),INDEX('Input|Rate of change'!$C$14:$O$22,MATCH('Input|Step changes'!$F16,'Input|Rate of change'!$C$14:$C$22,0),MATCH('Calc|Opex forecast'!$F48,'Input|Rate of change'!$C$14:$O$14,0)))*IF('Input|Step changes'!$E16="$millions",1000000,IF('Input|Step changes'!$E16="$000",1000,1))/IF($E48="$millions",1000000,IF($E48="$000",1000,1)) -> 0
C49: ='Input|Step changes'!C17 -> 0 | D49: Calculated | E49: $millions | F49: 2014-15 | J49: ='Input|Step changes'!J17*IF('Input|Step changes'!$F17="nominal",LOOKUP($F49,Nominal_to_Real,'Input|Rate of change'!N$27:N$32),INDEX('Input|Rate of change'!$C$14:$O$22,MATCH('Input|Step changes'!$F17,'Input|Rate of change'!$C$14:$C$22,0),MATCH('Calc|Opex forecast'!$F49,'Input|Rate of change'!$C$14:$O$14,0)))*IF('Input|Step changes'!$E17="$millions",1000000,IF('Input|Step changes'!$E17="$000",1000,1))/IF($E49="$millions",1000000,IF($E49="$000",1000,1)) -> 0 | K49: ='Input|Step changes'!K17*IF('Input|Step changes'!$F17="nominal",LOOKUP($F49,Nominal_to_Real,'Input|Rate of change'!O$27:O$32),INDEX('Input|Rate of change'!$C$14:$O$22,MATCH('Input|Step changes'!$F17,'Input|Rate of change'!$C$14:$C$22,0),MATCH('Calc|Opex forecast'!$F49,'Input|Rate of change'!$C$14:$O$14,0)))*IF('Input|Step changes'!$E17="$millions",1000000,IF('Input|Step changes'!$E17="$000",1000,1))/IF($E49="$millions",1000000,IF($E49="$000",1000,1)) -> 0 | L49: ='Input|Step changes'!L17*IF('Input|Step changes'!$F17="nominal",LOOKUP($F49,Nominal_to_Real,'Input|Rate of change'!P$27:P$32),INDEX('Input|Rate of change'!$C$14:$O$22,MATCH('Input|Step changes'!$F17,'Input|Rate of change'!$C$14:$C$22,0),MATCH('Calc|Opex forecast'!$F49,'Input|Rate of change'!$C$14:$O$14,0)))*IF('Input|Step changes'!$E17="$millions",1000000,IF('Input|Step changes'!$E17="$000",1000,1))/IF($E49="$millions",1000000,IF($E49="$000",1000,1)) -> 0 | M49: ='Input|Step changes'!M17*IF('Input|Step changes'!$F17="nominal",LOOKUP($F49,Nominal_to_Real,'Input|Rate of change'!Q$27:Q$32),INDEX('Input|Rate of change'!$C$14:$O$22,MATCH('Input|Step changes'!$F17,'Input|Rate of change'!$C$14:$C$22,0),MATCH('Calc|Opex forecast'!$F49,'Input|Rate of change'!$C$14:$O$14,0)))*IF('Input|Step changes'!$E17="$millions",1000000,IF('Input|Step changes'!$E17="$000",1000,1))/IF($E49="$millions",1000000,IF($E49="$000",1000,1)) -> 0 | N49: ='Input|Step changes'!N17*IF('Input|Step changes'!$F17="nominal",LOOKUP($F49,Nominal_to_Real,'Input|Rate of change'!R$27:R$32),INDEX('Input|Rate of change'!$C$14:$O$22,MATCH('Input|Step changes'!$F17,'Input|Rate of change'!$C$14:$C$22,0),MATCH('Calc|Opex forecast'!$F49,'Input|Rate of change'!$C$14:$O$14,0)))*IF('Input|Step changes'!$E17="$millions",1000000,IF('Input|Step changes'!$E17="$000",1000,1))/IF($E49="$millions",1000000,IF($E49="$000",1000,1)) -> 0 | O49: ='Input|Step changes'!O17*IF('Input|Step changes'!$F17="nominal",LOOKUP($F49,Nominal_to_Real,'Input|Rate of change'!S$27:S$32),INDEX('Input|Rate of change'!$C$14:$O$22,MATCH('Input|Step changes'!$F17,'Input|Rate of change'!$C$14:$C$22,0),MATCH('Calc|Opex forecast'!$F49,'Input|Rate of change'!$C$14:$O$14,0)))*IF('Input|Step changes'!$E17="$millions",1000000,IF('Input|Step changes'!$E17="$000",1000,1))/IF($E49="$millions",1000000,IF($E49="$000",1000,1)) -> 0 | P49: ='Input|Step changes'!P17*IF('Input|Step changes'!$F17="nominal",LOOKUP($F49,Nominal_to_Real,'Input|Rate of change'!T$27:T$32),INDEX('Input|Rate of change'!$C$14:$O$22,MATCH('Input|Step changes'!$F17,'Input|Rate of change'!$C$14:$C$22,0),MATCH('Calc|Opex forecast'!$F49,'Input|Rate of change'!$C$14:$O$14,0)))*IF('Input|Step changes'!$E17="$millions",1000000,IF('Input|Step changes'!$E17="$000",1000,1))/IF($E49="$millions",1000000,IF($E49="$000",1000,1)) -> 0 | Q49: ='Input|Step changes'!Q17*IF('Input|Step changes'!$F17="nominal",LOOKUP($F49,Nominal_to_Real,'Input|Rate of change'!U$27:U$32),INDEX('Input|Rate of change'!$C$14:$O$22,MATCH('Input|Step changes'!$F17,'Input|Rate of change'!$C$14:$C$22,0),MATCH('Calc|Opex forecast'!$F49,'Input|Rate of change'!$C$14:$O$14,0)))*IF('Input|Step changes'!$E17="$millions",1000000,IF('Input|Step changes'!$E17="$000",1000,1))/IF($E49="$millions",1000000,IF($E49="$000",1000,1)) -> 0 | R49: ='Input|Step changes'!R17*IF('Input|Step changes'!$F17="nominal",LOOKUP($F49,Nominal_to_Real,'Input|Rate of change'!V$27:V$32),INDEX('Input|Rate of change'!$C$14:$O$22,MATCH('Input|Step changes'!$F17,'Input|Rate of change'!$C$14:$C$22,0),MATCH('Calc|Opex forecast'!$F49,'Input|Rate of change'!$C$14:$O$14,0)))*IF('Input|Step changes'!$E17="$millions",1000000,IF('Input|Step changes'!$E17="$000",1000,1))/IF($E49="$millions",1000000,IF($E49="$000",1000,1)) -> 0 | S49: ='Input|Step changes'!S17*IF('Input|Step changes'!$F17="nominal",LOOKUP($F49,Nominal_to_Real,'Input|Rate of change'!W$27:W$32),INDEX('Input|Rate of change'!$C$14:$O$22,MATCH('Input|Step changes'!$F17,'Input|Rate of change'!$C$14:$C$22,0),MATCH('Calc|Opex forecast'!$F49,'Input|Rate of change'!$C$14:$O$14,0)))*IF('Input|Step changes'!$E17="$millions",1000000,IF('Input|Step changes'!$E17="$000",1000,1))/IF($E49="$millions",1000000,IF($E49="$000",1000,1)) -> 0
C50: ='Input|Step changes'!C18 -> 0 | D50: Calculated | E50: $millions | F50: 2014-15 | J50: ='Input|Step changes'!J18*IF('Input|Step changes'!$F18="nominal",LOOKUP($F50,Nominal_to_Real,'Input|Rate of change'!N$27:N$32),INDEX('Input|Rate of change'!$C$14:$O$22,MATCH('Input|Step changes'!$F18,'Input|Rate of change'!$C$14:$C$22,0),MATCH('Calc|Opex forecast'!$F50,'Input|Rate of change'!$C$14:$O$14,0)))*IF('Input|Step changes'!$E18="$millions",1000000,IF('Input|Step changes'!$E18="$000",1000,1))/IF($E50="$millions",1000000,IF($E50="$000",1000,1)) -> 0 | K50: ='Input|Step changes'!K18*IF('Input|Step changes'!$F18="nominal",LOOKUP($F50,Nominal_to_Real,'Input|Rate of change'!O$27:O$32),INDEX('Input|Rate of change'!$C$14:$O$22,MATCH('Input|Step changes'!$F18,'Input|Rate of change'!$C$14:$C$22,0),MATCH('Calc|Opex forecast'!$F50,'Input|Rate of change'!$C$14:$O$14,0)))*IF('Input|Step changes'!$E18="$millions",1000000,IF('Input|Step changes'!$E18="$000",1000,1))/IF($E50="$millions",1000000,IF($E50="$000",1000,1)) -> 0 | L50: ='Input|Step changes'!L18*IF('Input|Step changes'!$F18="nominal",LOOKUP($F50,Nominal_to_Real,'Input|Rate of change'!P$27:P$32),INDEX('Input|Rate of change'!$C$14:$O$22,MATCH('Input|Step changes'!$F18,'Input|Rate of change'!$C$14:$C$22,0),MATCH('Calc|Opex forecast'!$F50,'Input|Rate of change'!$C$14:$O$14,0)))*IF('Input|Step changes'!$E18="$millions",1000000,IF('Input|Step changes'!$E18="$000",1000,1))/IF($E50="$millions",1000000,IF($E50="$000",1000,1)) -> 0 | M50: ='Input|Step changes'!M18*IF('Input|Step changes'!$F18="nominal",LOOKUP($F50,Nominal_to_Real,'Input|Rate of change'!Q$27:Q$32),INDEX('Input|Rate of change'!$C$14:$O$22,MATCH('Input|Step changes'!$F18,'Input|Rate of change'!$C$14:$C$22,0),MATCH('Calc|Opex forecast'!$F50,'Input|Rate of change'!$C$14:$O$14,0)))*IF('Input|Step changes'!$E18="$millions",1000000,IF('Input|Step changes'!$E18="$000",1000,1))/IF($E50="$millions",1000000,IF($E50="$000",1000,1)) -> 0 | N50: ='Input|Step changes'!N18*IF('Input|Step changes'!$F18="nominal",LOOKUP($F50,Nominal_to_Real,'Input|Rate of change'!R$27:R$32),INDEX('Input|Rate of change'!$C$14:$O$22,MATCH('Input|Step changes'!$F18,'Input|Rate of change'!$C$14:$C$22,0),MATCH('Calc|Opex forecast'!$F50,'Input|Rate of change'!$C$14:$O$14,0)))*IF('Input|Step changes'!$E18="$millions",1000000,IF('Input|Step changes'!$E18="$000",1000,1))/IF($E50="$millions",1000000,IF($E50="$000",1000,1)) -> 0 | O50: ='Input|Step changes'!O18*IF('Input|Step changes'!$F18="nominal",LOOKUP($F50,Nominal_to_Real,'Input|Rate of change'!S$27:S$32),INDEX('Input|Rate of change'!$C$14:$O$22,MATCH('Input|Step changes'!$F18,'Input|Rate of change'!$C$14:$C$22,0),MATCH('Calc|Opex forecast'!$F50,'Input|Rate of change'!$C$14:$O$14,0)))*IF('Input|Step changes'!$E18="$millions",1000000,IF('Input|Step changes'!$E18="$000",1000,1))/IF($E50="$millions",1000000,IF($E50="$000",1000,1)) -> 0 | P50: ='Input|Step changes'!P18*IF('Input|Step changes'!$F18="nominal",LOOKUP($F50,Nominal_to_Real,'Input|Rate of change'!T$27:T$32),INDEX('Input|Rate of change'!$C$14:$O$22,MATCH('Input|Step changes'!$F18,'Input|Rate of change'!$C$14:$C$22,0),MATCH('Calc|Opex forecast'!$F50,'Input|Rate of change'!$C$14:$O$14,0)))*IF('Input|Step changes'!$E18="$millions",1000000,IF('Input|Step changes'!$E18="$000",1000,1))/IF($E50="$millions",1000000,IF($E50="$000",1000,1)) -> 0 | Q50: ='Input|Step changes'!Q18*IF('Input|Step changes'!$F18="nominal",LOOKUP($F50,Nominal_to_Real,'Input|Rate of change'!U$27:U$32),INDEX('Input|Rate of change'!$C$14:$O$22,MATCH('Input|Step changes'!$F18,'Input|Rate of change'!$C$14:$C$22,0),MATCH('Calc|Opex forecast'!$F50,'Input|Rate of change'!$C$14:$O$14,0)))*IF('Input|Step changes'!$E18="$millions",1000000,IF('Input|Step changes'!$E18="$000",1000,1))/IF($E50="$millions",1000000,IF($E50="$000",1000,1)) -> 0 | R50: ='Input|Step changes'!R18*IF('Input|Step changes'!$F18="nominal",LOOKUP($F50,Nominal_to_Real,'Input|Rate of change'!V$27:V$32),INDEX('Input|Rate of change'!$C$14:$O$22,MATCH('Input|Step changes'!$F18,'Input|Rate of change'!$C$14:$C$22,0),MATCH('Calc|Opex forecast'!$F50,'Input|Rate of change'!$C$14:$O$14,0)))*IF('Input|Step changes'!$E18="$millions",1000000,IF('Input|Step changes'!$E18="$000",1000,1))/IF($E50="$millions",1000000,IF($E50="$000",1000,1)) -> 0 | S50: ='Input|Step changes'!S18*IF('Input|Step changes'!$F18="nominal",LOOKUP($F50,Nominal_to_Real,'Input|Rate of change'!W$27:W$32),INDEX('Input|Rate of change'!$C$14:$O$22,MATCH('Input|Step changes'!$F18,'Input|Rate of change'!$C$14:$C$22,0),MATCH('Calc|Opex forecast'!$F50,'Input|Rate of change'!$C$14:$O$14,0)))*IF('Input|Step changes'!$E18="$millions",1000000,IF('Input|Step changes'!$E18="$000",1000,1))/IF($E50="$millions",1000000,IF($E50="$000",1000,1)) -> 0
C51: ='Input|Step changes'!C19 -> 0 | D51: Calculated | E51: $millions | F51: 2014-15 | J51: ='Input|Step changes'!J19*IF('Input|Step changes'!$F19="nominal",LOOKUP($F51,Nominal_to_Real,'Input|Rate of change'!N$27:N$32),INDEX('Input|Rate of change'!$C$14:$O$22,MATCH('Input|Step changes'!$F19,'Input|Rate of change'!$C$14:$C$22,0),MATCH('Calc|Opex forecast'!$F51,'Input|Rate of change'!$C$14:$O$14,0)))*IF('Input|Step changes'!$E19="$millions",1000000,IF('Input|Step changes'!$E19="$000",1000,1))/IF($E51="$millions",1000000,IF($E51="$000",1000,1)) -> 0 | K51: ='Input|Step changes'!K19*IF('Input|Step changes'!$F19="nominal",LOOKUP($F51,Nominal_to_Real,'Input|Rate of change'!O$27:O$32),INDEX('Input|Rate of change'!$C$14:$O$22,MATCH('Input|Step changes'!$F19,'Input|Rate of change'!$C$14:$C$22,0),MATCH('Calc|Opex forecast'!$F51,'Input|Rate of change'!$C$14:$O$14,0)))*IF('Input|Step changes'!$E19="$millions",1000000,IF('Input|Step changes'!$E19="$000",1000,1))/IF($E51="$millions",1000000,IF($E51="$000",1000,1)) -> 0 | L51: ='Input|Step changes'!L19*IF('Input|Step changes'!$F19="nominal",LOOKUP($F51,Nominal_to_Real,'Input|Rate of change'!P$27:P$32),INDEX('Input|Rate of change'!$C$14:$O$22,MATCH('Input|Step changes'!$F19,'Input|Rate of change'!$C$14:$C$22,0),MATCH('Calc|Opex forecast'!$F51,'Input|Rate of change'!$C$14:$O$14,0)))*IF('Input|Step changes'!$E19="$millions",1000000,IF('Input|Step changes'!$E19="$000",1000,1))/IF($E51="$millions",1000000,IF($E51="$000",1000,1)) -> 0 | M51: ='Input|Step changes'!M19*IF('Input|Step changes'!$F19="nominal",LOOKUP($F51,Nominal_to_Real,'Input|Rate of change'!Q$27:Q$32),INDEX('Input|Rate of change'!$C$14:$O$22,MATCH('Input|Step changes'!$F19,'Input|Rate of change'!$C$14:$C$22,0),MATCH('Calc|Opex forecast'!$F51,'Input|Rate of change'!$C$14:$O$14,0)))*IF('Input|Step changes'!$E19="$millions",1000000,IF('Input|Step changes'!$E19="$000",1000,1))/IF($E51="$millions",1000000,IF($E51="$000",1000,1)) -> 0 | N51: ='Input|Step changes'!N19*IF('Input|Step changes'!$F19="nominal",LOOKUP($F51,Nominal_to_Real,'Input|Rate of change'!R$27:R$32),INDEX('Input|Rate of change'!$C$14:$O$22,MATCH('Input|Step changes'!$F19,'Input|Rate of change'!$C$14:$C$22,0),MATCH('Calc|Opex forecast'!$F51,'Input|Rate of change'!$C$14:$O$14,0)))*IF('Input|Step changes'!$E19="$millions",1000000,IF('Input|Step changes'!$E19="$000",1000,1))/IF($E51="$millions",1000000,IF($E51="$000",1000,1)) -> 0 | O51: ='Input|Step changes'!O19*IF('Input|Step changes'!$F19="nominal",LOOKUP($F51,Nominal_to_Real,'Input|Rate of change'!S$27:S$32),INDEX('Input|Rate of change'!$C$14:$O$22,MATCH('Input|Step changes'!$F19,'Input|Rate of change'!$C$14:$C$22,0),MATCH('Calc|Opex forecast'!$F51,'Input|Rate of change'!$C$14:$O$14,0)))*IF('Input|Step changes'!$E19="$millions",1000000,IF('Input|Step changes'!$E19="$000",1000,1))/IF($E51="$millions",1000000,IF($E51="$000",1000,1)) -> 0 | P51: ='Input|Step changes'!P19*IF('Input|Step changes'!$F19="nominal",LOOKUP($F51,Nominal_to_Real,'Input|Rate of change'!T$27:T$32),INDEX('Input|Rate of change'!$C$14:$O$22,MATCH('Input|Step changes'!$F19,'Input|Rate of change'!$C$14:$C$22,0),MATCH('Calc|Opex forecast'!$F51,'Input|Rate of change'!$C$14:$O$14,0)))*IF('Input|Step changes'!$E19="$millions",1000000,IF('Input|Step changes'!$E19="$000",1000,1))/IF($E51="$millions",1000000,IF($E51="$000",1000,1)) -> 0 | Q51: ='Input|Step changes'!Q19*IF('Input|Step changes'!$F19="nominal",LOOKUP($F51,Nominal_to_Real,'Input|Rate of change'!U$27:U$32),INDEX('Input|Rate of change'!$C$14:$O$22,MATCH('Input|Step changes'!$F19,'Input|Rate of change'!$C$14:$C$22,0),MATCH('Calc|Opex forecast'!$F51,'Input|Rate of change'!$C$14:$O$14,0)))*IF('Input|Step changes'!$E19="$millions",1000000,IF('Input|Step changes'!$E19="$000",1000,1))/IF($E51="$millions",1000000,IF($E51="$000",1000,1)) -> 0 | R51: ='Input|Step changes'!R19*IF('Input|Step changes'!$F19="nominal",LOOKUP($F51,Nominal_to_Real,'Input|Rate of change'!V$27:V$32),INDEX('Input|Rate of change'!$C$14:$O$22,MATCH('Input|Step changes'!$F19,'Input|Rate of change'!$C$14:$C$22,0),MATCH('Calc|Opex forecast'!$F51,'Input|Rate of change'!$C$14:$O$14,0)))*IF('Input|Step changes'!$E19="$millions",1000000,IF('Input|Step changes'!$E19="$000",1000,1))/IF($E51="$millions",1000000,IF($E51="$000",1000,1)) -> 0 | S51: ='Input|Step changes'!S19*IF('Input|Step changes'!$F19="nominal",LOOKUP($F51,Nominal_to_Real,'Input|Rate of change'!W$27:W$32),INDEX('Input|Rate of change'!$C$14:$O$22,MATCH('Input|Step changes'!$F19,'Input|Rate of change'!$C$14:$C$22,0),MATCH('Calc|Opex forecast'!$F51,'Input|Rate of change'!$C$14:$O$14,0)))*IF('Input|Step changes'!$E19="$millions",1000000,IF('Input|Step changes'!$E19="$000",1000,1))/IF($E51="$millions",1000000,IF($E51="$000",1000,1)) -> 0
C52: ='Input|Step changes'!C20 -> 0 | D52: Calculated | E52: $millions | F52: 2014-15 | J52: ='Input|Step changes'!J20*IF('Input|Step changes'!$F20="nominal",LOOKUP($F52,Nominal_to_Real,'Input|Rate of change'!N$27:N$32),INDEX('Input|Rate of change'!$C$14:$O$22,MATCH('Input|Step changes'!$F20,'Input|Rate of change'!$C$14:$C$22,0),MATCH('Calc|Opex forecast'!$F52,'Input|Rate of change'!$C$14:$O$14,0)))*IF('Input|Step changes'!$E20="$millions",1000000,IF('Input|Step changes'!$E20="$000",1000,1))/IF($E52="$millions",1000000,IF($E52="$000",1000,1)) -> 0 | K52: ='Input|Step changes'!K20*IF('Input|Step changes'!$F20="nominal",LOOKUP($F52,Nominal_to_Real,'Input|Rate of change'!O$27:O$32),INDEX('Input|Rate of change'!$C$14:$O$22,MATCH('Input|Step changes'!$F20,'Input|Rate of change'!$C$14:$C$22,0),MATCH('Calc|Opex forecast'!$F52,'Input|Rate of change'!$C$14:$O$14,0)))*IF('Input|Step changes'!$E20="$millions",1000000,IF('Input|Step changes'!$E20="$000",1000,1))/IF($E52="$millions",1000000,IF($E52="$000",1000,1)) -> 0 | L52: ='Input|Step changes'!L20*IF('Input|Step changes'!$F20="nominal",LOOKUP($F52,Nominal_to_Real,'Input|Rate of change'!P$27:P$32),INDEX('Input|Rate of change'!$C$14:$O$22,MATCH('Input|Step changes'!$F20,'Input|Rate of change'!$C$14:$C$22,0),MATCH('Calc|Opex forecast'!$F52,'Input|Rate of change'!$C$14:$O$14,0)))*IF('Input|Step changes'!$E20="$millions",1000000,IF('Input|Step changes'!$E20="$000",1000,1))/IF($E52="$millions",1000000,IF($E52="$000",1000,1)) -> 0 | M52: ='Input|Step changes'!M20*IF('Input|Step changes'!$F20="nominal",LOOKUP($F52,Nominal_to_Real,'Input|Rate of change'!Q$27:Q$32),INDEX('Input|Rate of change'!$C$14:$O$22,MATCH('Input|Step changes'!$F20,'Input|Rate of change'!$C$14:$C$22,0),MATCH('Calc|Opex forecast'!$F52,'Input|Rate of change'!$C$14:$O$14,0)))*IF('Input|Step changes'!$E20="$millions",1000000,IF('Input|Step changes'!$E20="$000",1000,1))/IF($E52="$millions",1000000,IF($E52="$000",1000,1)) -> 0 | N52: ='Input|Step changes'!N20*IF('Input|Step changes'!$F20="nominal",LOOKUP($F52,Nominal_to_Real,'Input|Rate of change'!R$27:R$32),INDEX('Input|Rate of change'!$C$14:$O$22,MATCH('Input|Step changes'!$F20,'Input|Rate of change'!$C$14:$C$22,0),MATCH('Calc|Opex forecast'!$F52,'Input|Rate of change'!$C$14:$O$14,0)))*IF('Input|Step changes'!$E20="$millions",1000000,IF('Input|Step changes'!$E20="$000",1000,1))/IF($E52="$millions",1000000,IF($E52="$000",1000,1)) -> 0 | O52: ='Input|Step changes'!O20*IF('Input|Step changes'!$F20="nominal",LOOKUP($F52,Nominal_to_Real,'Input|Rate of change'!S$27:S$32),INDEX('Input|Rate of change'!$C$14:$O$22,MATCH('Input|Step changes'!$F20,'Input|Rate of change'!$C$14:$C$22,0),MATCH('Calc|Opex forecast'!$F52,'Input|Rate of change'!$C$14:$O$14,0)))*IF('Input|Step changes'!$E20="$millions",1000000,IF('Input|Step changes'!$E20="$000",1000,1))/IF($E52="$millions",1000000,IF($E52="$000",1000,1)) -> 0 | P52: ='Input|Step changes'!P20*IF('Input|Step changes'!$F20="nominal",LOOKUP($F52,Nominal_to_Real,'Input|Rate of change'!T$27:T$32),INDEX('Input|Rate of change'!$C$14:$O$22,MATCH('Input|Step changes'!$F20,'Input|Rate of change'!$C$14:$C$22,0),MATCH('Calc|Opex forecast'!$F52,'Input|Rate of change'!$C$14:$O$14,0)))*IF('Input|Step changes'!$E20="$millions",1000000,IF('Input|Step changes'!$E20="$000",1000,1))/IF($E52="$millions",1000000,IF($E52="$000",1000,1)) -> 0 | Q52: ='Input|Step changes'!Q20*IF('Input|Step changes'!$F20="nominal",LOOKUP($F52,Nominal_to_Real,'Input|Rate of change'!U$27:U$32),INDEX('Input|Rate of change'!$C$14:$O$22,MATCH('Input|Step changes'!$F20,'Input|Rate of change'!$C$14:$C$22,0),MATCH('Calc|Opex forecast'!$F52,'Input|Rate of change'!$C$14:$O$14,0)))*IF('Input|Step changes'!$E20="$millions",1000000,IF('Input|Step changes'!$E20="$000",1000,1))/IF($E52="$millions",1000000,IF($E52="$000",1000,1)) -> 0 | R52: ='Input|Step changes'!R20*IF('Input|Step changes'!$F20="nominal",LOOKUP($F52,Nominal_to_Real,'Input|Rate of change'!V$27:V$32),INDEX('Input|Rate of change'!$C$14:$O$22,MATCH('Input|Step changes'!$F20,'Input|Rate of change'!$C$14:$C$22,0),MATCH('Calc|Opex forecast'!$F52,'Input|Rate of change'!$C$14:$O$14,0)))*IF('Input|Step changes'!$E20="$millions",1000000,IF('Input|Step changes'!$E20="$000",1000,1))/IF($E52="$millions",1000000,IF($E52="$000",1000,1)) -> 0 | S52: ='Input|Step changes'!S20*IF('Input|Step changes'!$F20="nominal",LOOKUP($F52,Nominal_to_Real,'Input|Rate of change'!W$27:W$32),INDEX('Input|Rate of change'!$C$14:$O$22,MATCH('Input|Step changes'!$F20,'Input|Rate of change'!$C$14:$C$22,0),MATCH('Calc|Opex forecast'!$F52,'Input|Rate of change'!$C$14:$O$14,0)))*IF('Input|Step changes'!$E20="$millions",1000000,IF('Input|Step changes'!$E20="$000",1000,1))/IF($E52="$millions",1000000,IF($E52="$000",1000,1)) -> 0
C53: ='Input|Step changes'!C21 -> 0 | D53: Calculated | E53: $millions | F53: 2014-15 | J53: ='Input|Step changes'!J21*IF('Input|Step changes'!$F21="nominal",LOOKUP($F53,Nominal_to_Real,'Input|Rate of change'!N$27:N$32),INDEX('Input|Rate of change'!$C$14:$O$22,MATCH('Input|Step changes'!$F21,'Input|Rate of change'!$C$14:$C$22,0),MATCH('Calc|Opex forecast'!$F53,'Input|Rate of change'!$C$14:$O$14,0)))*IF('Input|Step changes'!$E21="$millions",1000000,IF('Input|Step changes'!$E21="$000",1000,1))/IF($E53="$millions",1000000,IF($E53="$000",1000,1)) -> 0 | K53: ='Input|Step changes'!K21*IF('Input|Step changes'!$F21="nominal",LOOKUP($F53,Nominal_to_Real,'Input|Rate of change'!O$27:O$32),INDEX('Input|Rate of change'!$C$14:$O$22,MATCH('Input|Step changes'!$F21,'Input|Rate of change'!$C$14:$C$22,0),MATCH('Calc|Opex forecast'!$F53,'Input|Rate of change'!$C$14:$O$14,0)))*IF('Input|Step changes'!$E21="$millions",1000000,IF('Input|Step changes'!$E21="$000",1000,1))/IF($E53="$millions",1000000,IF($E53="$000",1000,1)) -> 0 | L53: ='Input|Step changes'!L21*IF('Input|Step changes'!$F21="nominal",LOOKUP($F53,Nominal_to_Real,'Input|Rate of change'!P$27:P$32),INDEX('Input|Rate of change'!$C$14:$O$22,MATCH('Input|Step changes'!$F21,'Input|Rate of change'!$C$14:$C$22,0),MATCH('Calc|Opex forecast'!$F53,'Input|Rate of change'!$C$14:$O$14,0)))*IF('Input|Step changes'!$E21="$millions",1000000,IF('Input|Step changes'!$E21="$000",1000,1))/IF($E53="$millions",1000000,IF($E53="$000",1000,1)) -> 0 | M53: ='Input|Step changes'!M21*IF('Input|Step changes'!$F21="nominal",LOOKUP($F53,Nominal_to_Real,'Input|Rate of change'!Q$27:Q$32),INDEX('Input|Rate of change'!$C$14:$O$22,MATCH('Input|Step changes'!$F21,'Input|Rate of change'!$C$14:$C$22,0),MATCH('Calc|Opex forecast'!$F53,'Input|Rate of change'!$C$14:$O$14,0)))*IF('Input|Step changes'!$E21="$millions",1000000,IF('Input|Step changes'!$E21="$000",1000,1))/IF($E53="$millions",1000000,IF($E53="$000",1000,1)) -> 0 | N53: ='Input|Step changes'!N21*IF('Input|Step changes'!$F21="nominal",LOOKUP($F53,Nominal_to_Real,'Input|Rate of change'!R$27:R$32),INDEX('Input|Rate of change'!$C$14:$O$22,MATCH('Input|Step changes'!$F21,'Input|Rate of change'!$C$14:$C$22,0),MATCH('Calc|Opex forecast'!$F53,'Input|Rate of change'!$C$14:$O$14,0)))*IF('Input|Step changes'!$E21="$millions",1000000,IF('Input|Step changes'!$E21="$000",1000,1))/IF($E53="$millions",1000000,IF($E53="$000",1000,1)) -> 0 | O53: ='Input|Step changes'!O21*IF('Input|Step changes'!$F21="nominal",LOOKUP($F53,Nominal_to_Real,'Input|Rate of change'!S$27:S$32),INDEX('Input|Rate of change'!$C$14:$O$22,MATCH('Input|Step changes'!$F21,'Input|Rate of change'!$C$14:$C$22,0),MATCH('Calc|Opex forecast'!$F53,'Input|Rate of change'!$C$14:$O$14,0)))*IF('Input|Step changes'!$E21="$millions",1000000,IF('Input|Step changes'!$E21="$000",1000,1))/IF($E53="$millions",1000000,IF($E53="$000",1000,1)) -> 0 | P53: ='Input|Step changes'!P21*IF('Input|Step changes'!$F21="nominal",LOOKUP($F53,Nominal_to_Real,'Input|Rate of change'!T$27:T$32),INDEX('Input|Rate of change'!$C$14:$O$22,MATCH('Input|Step changes'!$F21,'Input|Rate of change'!$C$14:$C$22,0),MATCH('Calc|Opex forecast'!$F53,'Input|Rate of change'!$C$14:$O$14,0)))*IF('Input|Step changes'!$E21="$millions",1000000,IF('Input|Step changes'!$E21="$000",1000,1))/IF($E53="$millions",1000000,IF($E53="$000",1000,1)) -> 0 | Q53: ='Input|Step changes'!Q21*IF('Input|Step changes'!$F21="nominal",LOOKUP($F53,Nominal_to_Real,'Input|Rate of change'!U$27:U$32),INDEX('Input|Rate of change'!$C$14:$O$22,MATCH('Input|Step changes'!$F21,'Input|Rate of change'!$C$14:$C$22,0),MATCH('Calc|Opex forecast'!$F53,'Input|Rate of change'!$C$14:$O$14,0)))*IF('Input|Step changes'!$E21="$millions",1000000,IF('Input|Step changes'!$E21="$000",1000,1))/IF($E53="$millions",1000000,IF($E53="$000",1000,1)) -> 0 | R53: ='Input|Step changes'!R21*IF('Input|Step changes'!$F21="nominal",LOOKUP($F53,Nominal_to_Real,'Input|Rate of change'!V$27:V$32),INDEX('Input|Rate of change'!$C$14:$O$22,MATCH('Input|Step changes'!$F21,'Input|Rate of change'!$C$14:$C$22,0),MATCH('Calc|Opex forecast'!$F53,'Input|Rate of change'!$C$14:$O$14,0)))*IF('Input|Step changes'!$E21="$millions",1000000,IF('Input|Step changes'!$E21="$000",1000,1))/IF($E53="$millions",1000000,IF($E53="$000",1000,1)) -> 0 | S53: ='Input|Step changes'!S21*IF('Input|Step changes'!$F21="nominal",LOOKUP($F53,Nominal_to_Real,'Input|Rate of change'!W$27:W$32),INDEX('Input|Rate of change'!$C$14:$O$22,MATCH('Input|Step changes'!$F21,'Input|Rate of change'!$C$14:$C$22,0),MATCH('Calc|Opex forecast'!$F53,'Input|Rate of change'!$C$14:$O$14,0)))*IF('Input|Step changes'!$E21="$millions",1000000,IF('Input|Step changes'!$E21="$000",1000,1))/IF($E53="$millions",1000000,IF($E53="$000",1000,1)) -> 0
C54: ='Input|Step changes'!C22 -> 0 | D54: Calculated | E54: $millions | F54: 2014-15 | J54: ='Input|Step changes'!J22*IF('Input|Step changes'!$F22="nominal",LOOKUP($F54,Nominal_to_Real,'Input|Rate of change'!N$27:N$32),INDEX('Input|Rate of change'!$C$14:$O$22,MATCH('Input|Step changes'!$F22,'Input|Rate of change'!$C$14:$C$22,0),MATCH('Calc|Opex forecast'!$F54,'Input|Rate of change'!$C$14:$O$14,0)))*IF('Input|Step changes'!$E22="$millions",1000000,IF('Input|Step changes'!$E22="$000",1000,1))/IF($E54="$millions",1000000,IF($E54="$000",1000,1)) -> 0 | K54: ='Input|Step changes'!K22*IF('Input|Step changes'!$F22="nominal",LOOKUP($F54,Nominal_to_Real,'Input|Rate of change'!O$27:O$32),INDEX('Input|Rate of change'!$C$14:$O$22,MATCH('Input|Step changes'!$F22,'Input|Rate of change'!$C$14:$C$22,0),MATCH('Calc|Opex forecast'!$F54,'Input|Rate of change'!$C$14:$O$14,0)))*IF('Input|Step changes'!$E22="$millions",1000000,IF('Input|Step changes'!$E22="$000",1000,1))/IF($E54="$millions",1000000,IF($E54="$000",1000,1)) -> 0 | L54: ='Input|Step changes'!L22*IF('Input|Step changes'!$F22="nominal",LOOKUP($F54,Nominal_to_Real,'Input|Rate of change'!P$27:P$32),INDEX('Input|Rate of change'!$C$14:$O$22,MATCH('Input|Step changes'!$F22,'Input|Rate of change'!$C$14:$C$22,0),MATCH('Calc|Opex forecast'!$F54,'Input|Rate of change'!$C$14:$O$14,0)))*IF('Input|Step changes'!$E22="$millions",1000000,IF('Input|Step changes'!$E22="$000",1000,1))/IF($E54="$millions",1000000,IF($E54="$000",1000,1)) -> 0 | M54: ='Input|Step changes'!M22*IF('Input|Step changes'!$F22="nominal",LOOKUP($F54,Nominal_to_Real,'Input|Rate of change'!Q$27:Q$32),INDEX('Input|Rate of change'!$C$14:$O$22,MATCH('Input|Step changes'!$F22,'Input|Rate of change'!$C$14:$C$22,0),MATCH('Calc|Opex forecast'!$F54,'Input|Rate of change'!$C$14:$O$14,0)))*IF('Input|Step changes'!$E22="$millions",1000000,IF('Input|Step changes'!$E22="$000",1000,1))/IF($E54="$millions",1000000,IF($E54="$000",1000,1)) -> 0 | N54: ='Input|Step changes'!N22*IF('Input|Step changes'!$F22="nominal",LOOKUP($F54,Nominal_to_Real,'Input|Rate of change'!R$27:R$32),INDEX('Input|Rate of change'!$C$14:$O$22,MATCH('Input|Step changes'!$F22,'Input|Rate of change'!$C$14:$C$22,0),MATCH('Calc|Opex forecast'!$F54,'Input|Rate of change'!$C$14:$O$14,0)))*IF('Input|Step changes'!$E22="$millions",1000000,IF('Input|Step changes'!$E22="$000",1000,1))/IF($E54="$millions",1000000,IF($E54="$000",1000,1)) -> 0 | O54: ='Input|Step changes'!O22*IF('Input|Step changes'!$F22="nominal",LOOKUP($F54,Nominal_to_Real,'Input|Rate of change'!S$27:S$32),INDEX('Input|Rate of change'!$C$14:$O$22,MATCH('Input|Step changes'!$F22,'Input|Rate of change'!$C$14:$C$22,0),MATCH('Calc|Opex forecast'!$F54,'Input|Rate of change'!$C$14:$O$14,0)))*IF('Input|Step changes'!$E22="$millions",1000000,IF('Input|Step changes'!$E22="$000",1000,1))/IF($E54="$millions",1000000,IF($E54="$000",1000,1)) -> 0 | P54: ='Input|Step changes'!P22*IF('Input|Step changes'!$F22="nominal",LOOKUP($F54,Nominal_to_Real,'Input|Rate of change'!T$27:T$32),INDEX('Input|Rate of change'!$C$14:$O$22,MATCH('Input|Step changes'!$F22,'Input|Rate of change'!$C$14:$C$22,0),MATCH('Calc|Opex forecast'!$F54,'Input|Rate of change'!$C$14:$O$14,0)))*IF('Input|Step changes'!$E22="$millions",1000000,IF('Input|Step changes'!$E22="$000",1000,1))/IF($E54="$millions",1000000,IF($E54="$000",1000,1)) -> 0 | Q54: ='Input|Step changes'!Q22*IF('Input|Step changes'!$F22="nominal",LOOKUP($F54,Nominal_to_Real,'Input|Rate of change'!U$27:U$32),INDEX('Input|Rate of change'!$C$14:$O$22,MATCH('Input|Step changes'!$F22,'Input|Rate of change'!$C$14:$C$22,0),MATCH('Calc|Opex forecast'!$F54,'Input|Rate of change'!$C$14:$O$14,0)))*IF('Input|Step changes'!$E22="$millions",1000000,IF('Input|Step changes'!$E22="$000",1000,1))/IF($E54="$millions",1000000,IF($E54="$000",1000,1)) -> 0 | R54: ='Input|Step changes'!R22*IF('Input|Step changes'!$F22="nominal",LOOKUP($F54,Nominal_to_Real,'Input|Rate of change'!V$27:V$32),INDEX('Input|Rate of change'!$C$14:$O$22,MATCH('Input|Step changes'!$F22,'Input|Rate of change'!$C$14:$C$22,0),MATCH('Calc|Opex forecast'!$F54,'Input|Rate of change'!$C$14:$O$14,0)))*IF('Input|Step changes'!$E22="$millions",1000000,IF('Input|Step changes'!$E22="$000",1000,1))/IF($E54="$millions",1000000,IF($E54="$000",1000,1)) -> 0 | S54: ='Input|Step changes'!S22*IF('Input|Step changes'!$F22="nominal",LOOKUP($F54,Nominal_to_Real,'Input|Rate of change'!W$27:W$32),INDEX('Input|Rate of change'!$C$14:$O$22,MATCH('Input|Step changes'!$F22,'Input|Rate of change'!$C$14:$C$22,0),MATCH('Calc|Opex forecast'!$F54,'Input|Rate of change'!$C$14:$O$14,0)))*IF('Input|Step changes'!$E22="$millions",1000000,IF('Input|Step changes'!$E22="$000",1000,1))/IF($E54="$millions",1000000,IF($E54="$000",1000,1)) -> 0
C55: ='Input|Step changes'!C23 -> 0 | D55: Calculated | E55: $millions | F55: 2014-15 | J55: ='Input|Step changes'!J23*IF('Input|Step changes'!$F23="nominal",LOOKUP($F55,Nominal_to_Real,'Input|Rate of change'!N$27:N$32),INDEX('Input|Rate of change'!$C$14:$O$22,MATCH('Input|Step changes'!$F23,'Input|Rate of change'!$C$14:$C$22,0),MATCH('Calc|Opex forecast'!$F55,'Input|Rate of change'!$C$14:$O$14,0)))*IF('Input|Step changes'!$E23="$millions",1000000,IF('Input|Step changes'!$E23="$000",1000,1))/IF($E55="$millions",1000000,IF($E55="$000",1000,1)) -> 0 | K55: ='Input|Step changes'!K23*IF('Input|Step changes'!$F23="nominal",LOOKUP($F55,Nominal_to_Real,'Input|Rate of change'!O$27:O$32),INDEX('Input|Rate of change'!$C$14:$O$22,MATCH('Input|Step changes'!$F23,'Input|Rate of change'!$C$14:$C$22,0),MATCH('Calc|Opex forecast'!$F55,'Input|Rate of change'!$C$14:$O$14,0)))*IF('Input|Step changes'!$E23="$millions",1000000,IF('Input|Step changes'!$E23="$000",1000,1))/IF($E55="$millions",1000000,IF($E55="$000",1000,1)) -> 0 | L55: ='Input|Step changes'!L23*IF('Input|Step changes'!$F23="nominal",LOOKUP($F55,Nominal_to_Real,'Input|Rate of change'!P$27:P$32),INDEX('Input|Rate of change'!$C$14:$O$22,MATCH('Input|Step changes'!$F23,'Input|Rate of change'!$C$14:$C$22,0),MATCH('Calc|Opex forecast'!$F55,'Input|Rate of change'!$C$14:$O$14,0)))*IF('Input|Step changes'!$E23="$millions",1000000,IF('Input|Step changes'!$E23="$000",1000,1))/IF($E55="$millions",1000000,IF($E55="$000",1000,1)) -> 0 | M55: ='Input|Step changes'!M23*IF('Input|Step changes'!$F23="nominal",LOOKUP($F55,Nominal_to_Real,'Input|Rate of change'!Q$27:Q$32),INDEX('Input|Rate of change'!$C$14:$O$22,MATCH('Input|Step changes'!$F23,'Input|Rate of change'!$C$14:$C$22,0),MATCH('Calc|Opex forecast'!$F55,'Input|Rate of change'!$C$14:$O$14,0)))*IF('Input|Step changes'!$E23="$millions",1000000,IF('Input|Step changes'!$E23="$000",1000,1))/IF($E55="$millions",1000000,IF($E55="$000",1000,1)) -> 0 | N55: ='Input|Step changes'!N23*IF('Input|Step changes'!$F23="nominal",LOOKUP($F55,Nominal_to_Real,'Input|Rate of change'!R$27:R$32),INDEX('Input|Rate of change'!$C$14:$O$22,MATCH('Input|Step changes'!$F23,'Input|Rate of change'!$C$14:$C$22,0),MATCH('Calc|Opex forecast'!$F55,'Input|Rate of change'!$C$14:$O$14,0)))*IF('Input|Step changes'!$E23="$millions",1000000,IF('Input|Step changes'!$E23="$000",1000,1))/IF($E55="$millions",1000000,IF($E55="$000",1000,1)) -> 0 | O55: ='Input|Step changes'!O23*IF('Input|Step changes'!$F23="nominal",LOOKUP($F55,Nominal_to_Real,'Input|Rate of change'!S$27:S$32),INDEX('Input|Rate of change'!$C$14:$O$22,MATCH('Input|Step changes'!$F23,'Input|Rate of change'!$C$14:$C$22,0),MATCH('Calc|Opex forecast'!$F55,'Input|Rate of change'!$C$14:$O$14,0)))*IF('Input|Step changes'!$E23="$millions",1000000,IF('Input|Step changes'!$E23="$000",1000,1))/IF($E55="$millions",1000000,IF($E55="$000",1000,1)) -> 0 | P55: ='Input|Step changes'!P23*IF('Input|Step changes'!$F23="nominal",LOOKUP($F55,Nominal_to_Real,'Input|Rate of change'!T$27:T$32),INDEX('Input|Rate of change'!$C$14:$O$22,MATCH('Input|Step changes'!$F23,'Input|Rate of change'!$C$14:$C$22,0),MATCH('Calc|Opex forecast'!$F55,'Input|Rate of change'!$C$14:$O$14,0)))*IF('Input|Step changes'!$E23="$millions",1000000,IF('Input|Step changes'!$E23="$000",1000,1))/IF($E55="$millions",1000000,IF($E55="$000",1000,1)) -> 0 | Q55: ='Input|Step changes'!Q23*IF('Input|Step changes'!$F23="nominal",LOOKUP($F55,Nominal_to_Real,'Input|Rate of change'!U$27:U$32),INDEX('Input|Rate of change'!$C$14:$O$22,MATCH('Input|Step changes'!$F23,'Input|Rate of change'!$C$14:$C$22,0),MATCH('Calc|Opex forecast'!$F55,'Input|Rate of change'!$C$14:$O$14,0)))*IF('Input|Step changes'!$E23="$millions",1000000,IF('Input|Step changes'!$E23="$000",1000,1))/IF($E55="$millions",1000000,IF($E55="$000",1000,1)) -> 0 | R55: ='Input|Step changes'!R23*IF('Input|Step changes'!$F23="nominal",LOOKUP($F55,Nominal_to_Real,'Input|Rate of change'!V$27:V$32),INDEX('Input|Rate of change'!$C$14:$O$22,MATCH('Input|Step changes'!$F23,'Input|Rate of change'!$C$14:$C$22,0),MATCH('Calc|Opex forecast'!$F55,'Input|Rate of change'!$C$14:$O$14,0)))*IF('Input|Step changes'!$E23="$millions",1000000,IF('Input|Step changes'!$E23="$000",1000,1))/IF($E55="$millions",1000000,IF($E55="$000",1000,1)) -> 0 | S55: ='Input|Step changes'!S23*IF('Input|Step changes'!$F23="nominal",LOOKUP($F55,Nominal_to_Real,'Input|Rate of change'!W$27:W$32),INDEX('Input|Rate of change'!$C$14:$O$22,MATCH('Input|Step changes'!$F23,'Input|Rate of change'!$C$14:$C$22,0),MATCH('Calc|Opex forecast'!$F55,'Input|Rate of change'!$C$14:$O$14,0)))*IF('Input|Step changes'!$E23="$millions",1000000,IF('Input|Step changes'!$E23="$000",1000,1))/IF($E55="$millions",1000000,IF($E55="$000",1000,1)) -> 0
C57: Total step changes | D57: Calculated | E57: =$E$8 -> $millions | F57: =$F$8 -> 2014-15 | J57: =SUM(J44:J56) -> 0 | K57: =SUM(K44:K56) -> 0 | L57: 0 | M57: 0 | N57: 0 | O57: =SUM(O44:O56) -> 0 | P57: 0 | Q57: 0 | R57: 0 | S57: 0
B59: Calc | Total forecast operating expenditure
J61: =IF(RIGHT(J$4,2)>=RIGHT('Input|General'!$G$9,2),IF(RIGHT(J$4,2)<=RIGHT('Input|General'!$G$12,2),J$4,""),"") ->  | K61: =IF(RIGHT(K$4,2)>=RIGHT('Input|General'!$G$9,2),IF(RIGHT(K$4,2)<=RIGHT('Input|General'!$G$12,2),K$4,""),"") ->  | L61: =IF(RIGHT(L$4,2)>=RIGHT('Input|General'!$G$9,2),IF(RIGHT(L$4,2)<=RIGHT('Input|General'!$G$12,2),L$4,""),"") -> 2012-13 | M61: =IF(RIGHT(M$4,2)>=RIGHT('Input|General'!$G$9,2),IF(RIGHT(M$4,2)<=RIGHT('Input|General'!$G$12,2),M$4,""),"") -> 2013-14 | N61: =IF(RIGHT(N$4,2)>=RIGHT('Input|General'!$G$9,2),IF(RIGHT(N$4,2)<=RIGHT('Input|General'!$G$12,2),N$4,""),"") -> 2014-15 | O61: =IF(RIGHT(O$4,2)>=RIGHT('Input|General'!$G$9,2),IF(RIGHT(O$4,2)<=RIGHT('Input|General'!$G$12,2),O$4,""),"") -> 2015-16 | P61: =IF(RIGHT(P$4,2)>=RIGHT('Input|General'!$G$9,2),IF(RIGHT(P$4,2)<=RIGHT('Input|General'!$G$12,2),P$4,""),"") -> 2016-17 | Q61: =IF(RIGHT(Q$4,2)>=RIGHT('Input|General'!$G$9,2),IF(RIGHT(Q$4,2)<=RIGHT('Input|General'!$G$12,2),Q$4,""),"") -> 2017-18 | R61: =IF(RIGHT(R$4,2)>=RIGHT('Input|General'!$G$9,2),IF(RIGHT(R$4,2)<=RIGHT('Input|General'!$G$12,2),R$4,""),"") -> 2018-19 | S61: =IF(RIGHT(S$4,2)>=RIGHT('Input|General'!$G$9,2),IF(RIGHT(S$4,2)<=RIGHT('Input|General'!$G$12,2),S$4,""),"") -> 2019-20
C63: Total forecast opex, excluding debt raising costs | D63: Calculated | E63: =$E$8 -> $millions | F63: =$F$8 -> 2014-15 | J63: =J13 -> 0 | K63: 0 | L63: 362.6468248 | M63: =M13 -> 0 | N63: =N15 -> 0 | O63: =IF(RIGHT(O$4,2)>=RIGHT('Input|General'!$G$11,2),IF(RIGHT(O$4,2)<='Input|General'!$G$12,IF(ISBLANK(O61),"",PRODUCT(1+$J38:O38)*SUM($J25:$S25)+O57),""),"") -> 314.398486 | P63: =IF(RIGHT(P$4,2)>=RIGHT('Input|General'!$G$11,2),IF(RIGHT(P$4,2)<='Input|General'!$G$12,IF(ISBLANK(P61),"",PRODUCT(1+$J38:P38)*SUM($J25:$S25)+P57),""),"") -> 320.2594118 | Q63: =IF(RIGHT(Q$4,2)>=RIGHT('Input|General'!$G$11,2),IF(RIGHT(Q$4,2)<='Input|General'!$G$12,IF(ISBLANK(Q61),"",PRODUCT(1+$J38:Q38)*SUM($J25:$S25)+Q57),""),"") -> 325.3516898 | R63: =IF(RIGHT(R$4,2)>=RIGHT('Input|General'!$G$11,2),IF(RIGHT(R$4,2)<='Input|General'!$G$12,IF(ISBLANK(R61),"",PRODUCT(1+$J38:R38)*SUM($J25:$S25)+R57),""),"") -> 332.0145531 | S63: =IF(RIGHT(S$4,2)>=RIGHT('Input|General'!$G$11,2),IF(RIGHT(S$4,2)<='Input|General'!$G$12,IF(ISBLANK(S61),"",PRODUCT(1+$J38:S38)*SUM($J25:$S25)+S57),""),"") -> 337.8480445
C64: Total forecast opex, including debt raising costs | D64: Calculated | E64: =$E$8 -> $millions | F64: =$F$8 -> 2014-15 | O64: =O63+'Input|Step changes'!O29 -> 314.398486 | P64: =P63+'Input|Step changes'!P29 -> 320.2594118 | Q64: =Q63+'Input|Step changes'!Q29 -> 325.3516898 | R64: =R63+'Input|Step changes'!R29 -> 332.0145531 | S64: =S63+'Input|Step changes'!S29 -> 337.8480445
B66: End

Sheet Output|Models
B1: =Index!$B$1 -> AER opex model | J1: Back to Index | L1: Key: | M1: Input | N1: External Link | O1: Internal Link | R1: Worksheet check: | S1: =IF(COUNTA($W$14:$W$471)=COUNTIF($W$14:$W$471,"OK"),"OK","Check") -> OK | U1: Overall Check: | V1: ='Check|List'!$S$1 -> Ok
B2: =Index!$C$13 -> Output | Models
D4: Source | E4: Unit | F4: Basis | J4: ='Input|General'!$G$8 -> 2010-11 | K4: =IF(OFFSET('Lookup|Tables'!$G$28:$G$43,MATCH('Input|General'!$G$8,'Lookup|Tables'!$G$28:$G$42,0)+1,0,1,1)<='Input|General'!$G$12,OFFSET('Lookup|Tables'!$G$28:$G$43,1,0,1,1),"") -> 2010-11 | L4: =IF(OFFSET('Lookup|Tables'!$G$28:$G$43,MATCH('Input|General'!$G$8,'Lookup|Tables'!$G$28:$G$42,0)+1,0,1,1)<='Input|General'!$G$12,OFFSET('Lookup|Tables'!$G$28:$G$43,MATCH('Input|General'!$G$8,'Lookup|Tables'!$G$28:$G$42,0)+1,0,1,1),"") -> 2012-13 | M4: =IF(OFFSET('Lookup|Tables'!$G$28:$G$43,MATCH('Input|General'!$G$8,'Lookup|Tables'!$G$28:$G$42,0)+2,0,1,1)<='Input|General'!$G$12,OFFSET('Lookup|Tables'!$G$28:$G$43,MATCH('Input|General'!$G$8,'Lookup|Tables'!$G$28:$G$42,0)+2,0,1,1),"") -> 2013-14 | N4: =IF(OFFSET('Lookup|Tables'!$G$28:$G$43,MATCH('Input|General'!$G$8,'Lookup|Tables'!$G$28:$G$42,0)+3,0,1,1)<='Input|General'!$G$12,OFFSET('Lookup|Tables'!$G$28:$G$43,MATCH('Input|General'!$G$8,'Lookup|Tables'!$G$28:$G$42,0)+3,0,1,1),"") -> 2014-15 | O4: =IF(OFFSET('Lookup|Tables'!$G$28:$G$43,MATCH('Input|General'!$G$8,'Lookup|Tables'!$G$28:$G$42,0)+4,0,1,1)<='Input|General'!$G$12,OFFSET('Lookup|Tables'!$G$28:$G$43,MATCH('Input|General'!$G$8,'Lookup|Tables'!$G$28:$G$42,0)+4,0,1,1),"") -> 2015-16 | P4: =IF(OFFSET('Lookup|Tables'!$G$28:$G$43,MATCH('Input|General'!$G$8,'Lookup|Tables'!$G$28:$G$42,0)+5,0,1,1)<='Input|General'!$G$12,OFFSET('Lookup|Tables'!$G$28:$G$43,MATCH('Input|General'!$G$8,'Lookup|Tables'!$G$28:$G$42,0)+5,0,1,1),"") -> 2016-17 | Q4: =IF(OFFSET('Lookup|Tables'!$G$28:$G$43,MATCH('Input|General'!$G$8,'Lookup|Tables'!$G$28:$G$42,0)+6,0,1,1)<='Input|General'!$G$12,OFFSET('Lookup|Tables'!$G$28:$G$43,MATCH('Input|General'!$G$8,'Lookup|Tables'!$G$28:$G$42,0)+6,0,1,1),"") -> 2017-18 | R4: =IF(OFFSET('Lookup|Tables'!$G$28:$G$43,MATCH('Input|General'!$G$8,'Lookup|Tables'!$G$28:$G$42,0)+7,0,1,1)<='Input|General'!$G$12,OFFSET('Lookup|Tables'!$G$28:$G$43,MATCH('Input|General'!$G$8,'Lookup|Tables'!$G$28:$G$42,0)+7,0,1,1),"") -> 2018-19 | S4: =IF(OFFSET('Lookup|Tables'!$G$28:$G$43,MATCH('Input|General'!$G$8,'Lookup|Tables'!$G$28:$G$42,0)+8,0,1,1)<='Input|General'!$G$12,OFFSET('Lookup|Tables'!$G$28:$G$43,MATCH('Input|General'!$G$8,'Lookup|Tables'!$G$28:$G$42,0)+8,0,1,1),"") -> 2019-20
B8: Inputs for Post Tax Revenue Model | E8: $millions | F8: 2014-15 | J8: Note. The dollar base should be consistent with the post tax revenue model
C11: Operating expenditure | D11: Source | E11: Unit | F11: Basis | J11: =IF(RIGHT(J$4,2)>=RIGHT('Input|General'!$G$11,2),IF(RIGHT(J$4,2)<=RIGHT('Input|General'!$G$12,2),J$4,""),"") ->  | K11: =IF(RIGHT(K$4,2)>=RIGHT('Input|General'!$G$11,2),IF(RIGHT(K$4,2)<=RIGHT('Input|General'!$G$12,2),K$4,""),"") ->  | L11: =IF(RIGHT(L$4,2)>=RIGHT('Input|General'!$G$11,2),IF(RIGHT(L$4,2)<=RIGHT('Input|General'!$G$12,2),L$4,""),"") ->  | M11: =IF(RIGHT(M$4,2)>=RIGHT('Input|General'!$G$11,2),IF(RIGHT(M$4,2)<=RIGHT('Input|General'!$G$12,2),M$4,""),"") ->  | N11: =IF(RIGHT(N$4,2)>=RIGHT('Input|General'!$G$11,2),IF(RIGHT(N$4,2)<=RIGHT('Input|General'!$G$12,2),N$4,""),"") ->  | O11: =IF(RIGHT(O$4,2)>=RIGHT('Input|General'!$G$11,2),IF(RIGHT(O$4,2)<=RIGHT('Input|General'!$G$12,2),O$4,""),"") -> 2015-16 | P11: =IF(RIGHT(P$4,2)>=RIGHT('Input|General'!$G$11,2),IF(RIGHT(P$4,2)<=RIGHT('Input|General'!$G$12,2),P$4,""),"") -> 2016-17 | Q11: =IF(RIGHT(Q$4,2)>=RIGHT('Input|General'!$G$11,2),IF(RIGHT(Q$4,2)<=RIGHT('Input|General'!$G$12,2),Q$4,""),"") -> 2017-18 | R11: =IF(RIGHT(R$4,2)>=RIGHT('Input|General'!$G$11,2),IF(RIGHT(R$4,2)<=RIGHT('Input|General'!$G$12,2),R$4,""),"") -> 2018-19 | S11: =IF(RIGHT(S$4,2)>=RIGHT('Input|General'!$G$11,2),IF(RIGHT(S$4,2)<=RIGHT('Input|General'!$G$12,2),S$4,""),"") -> 2019-20 | U11: Notes
C12: Forecast operating expenditure (excl. DRC) | D12: Calc | Opex forecast | E12: =$E$8 -> $millions | F12: =$F$8 -> 2014-15 | J12: =IF(J11="",0,'Calc|Opex forecast'!J63*IF('Calc|Opex forecast'!$F$63="nominal",LOOKUP($F12,Nominal_to_Real,'Input|Rate of change'!P$27:P$32),INDEX('Input|Rate of change'!$C$14:$O$22,MATCH('Calc|Opex forecast'!$F$63,'Input|Rate of change'!$C$14:$C$22,0),MATCH('Output|Models'!$F12,'Input|Rate of change'!$C$14:$O$14,0)))*IF('Calc|Opex forecast'!$E$63="$millions",1000000,IF('Output|Models'!B47="$000",1000,1))/IF($E12="$millions",1000000,IF($E12="$000",1000,1))) -> 0 | K12: =IF(K11="",0,'Calc|Opex forecast'!K63*IF('Calc|Opex forecast'!$F$63="nominal",LOOKUP($F12,Nominal_to_Real,'Input|Rate of change'!Q$27:Q$32),INDEX('Input|Rate of change'!$C$14:$O$22,MATCH('Calc|Opex forecast'!$F$63,'Input|Rate of change'!$C$14:$C$22,0),MATCH('Output|Models'!$F12,'Input|Rate of change'!$C$14:$O$14,0)))*IF('Calc|Opex forecast'!$E$63="$millions",1000000,IF('Output|Models'!C47="$000",1000,1))/IF($E12="$millions",1000000,IF($E12="$000",1000,1))) -> 0 | L12: =IF(L11="",0,'Calc|Opex forecast'!L63*IF('Calc|Opex forecast'!$F$63="nominal",LOOKUP($F12,Nominal_to_Real,'Input|Rate of change'!R$27:R$32),INDEX('Input|Rate of change'!$C$14:$O$22,MATCH('Calc|Opex forecast'!$F$63,'Input|Rate of change'!$C$14:$C$22,0),MATCH('Output|Models'!$F12,'Input|Rate of change'!$C$14:$O$14,0)))*IF('Calc|Opex forecast'!$E$63="$millions",1000000,IF('Output|Models'!D47="$000",1000,1))/IF($E12="$millions",1000000,IF($E12="$000",1000,1))) -> 0 | M12: =IF(M11="",0,'Calc|Opex forecast'!M63*IF('Calc|Opex forecast'!$F$63="nominal",LOOKUP($F12,Nominal_to_Real,'Input|Rate of change'!S$27:S$32),INDEX('Input|Rate of change'!$C$14:$O$22,MATCH('Calc|Opex forecast'!$F$63,'Input|Rate of change'!$C$14:$C$22,0),MATCH('Output|Models'!$F12,'Input|Rate of change'!$C$14:$O$14,0)))*IF('Calc|Opex forecast'!$E$63="$millions",1000000,IF('Output|Models'!E47="$000",1000,1))/IF($E12="$millions",1000000,IF($E12="$000",1000,1))) -> 0 | N12: =IF(N11="",0,'Calc|Opex forecast'!N63*IF('Calc|Opex forecast'!$F$63="nominal",LOOKUP($F12,Nominal_to_Real,'Input|Rate of change'!T$27:T$32),INDEX('Input|Rate of change'!$C$14:$O$22,MATCH('Calc|Opex forecast'!$F$63,'Input|Rate of change'!$C$14:$C$22,0),MATCH('Output|Models'!$F12,'Input|Rate of change'!$C$14:$O$14,0)))*IF('Calc|Opex forecast'!$E$63="$millions",1000000,IF('Output|Models'!F47="$000",1000,1))/IF($E12="$millions",1000000,IF($E12="$000",1000,1))) -> 0 | O12: =IF(O11="",0,'Calc|Opex forecast'!O63*IF('Calc|Opex forecast'!$F$63="nominal",LOOKUP($F12,Nominal_to_Real,'Input|Rate of change'!U$27:U$32),INDEX('Input|Rate of change'!$C$14:$O$22,MATCH('Calc|Opex forecast'!$F$63,'Input|Rate of change'!$C$14:$C$22,0),MATCH('Output|Models'!$F12,'Input|Rate of change'!$C$14:$O$14,0)))*IF('Calc|Opex forecast'!$E$63="$millions",1000000,IF('Output|Models'!G47="$000",1000,1))/IF($E12="$millions",1000000,IF($E12="$000",1000,1))) -> 314.398486 | P12: =IF(P11="",0,'Calc|Opex forecast'!P63*IF('Calc|Opex forecast'!$F$63="nominal",LOOKUP($F12,Nominal_to_Real,'Input|Rate of change'!V$27:V$32),INDEX('Input|Rate of change'!$C$14:$O$22,MATCH('Calc|Opex forecast'!$F$63,'Input|Rate of change'!$C$14:$C$22,0),MATCH('Output|Models'!$F12,'Input|Rate of change'!$C$14:$O$14,0)))*IF('Calc|Opex forecast'!$E$63="$millions",1000000,IF('Output|Models'!H47="$000",1000,1))/IF($E12="$millions",1000000,IF($E12="$000",1000,1))) -> 320.2594118 | Q12: =IF(Q11="",0,'Calc|Opex forecast'!Q63*IF('Calc|Opex forecast'!$F$63="nominal",LOOKUP($F12,Nominal_to_Real,'Input|Rate of change'!W$27:W$32),INDEX('Input|Rate of change'!$C$14:$O$22,MATCH('Calc|Opex forecast'!$F$63,'Input|Rate of change'!$C$14:$C$22,0),MATCH('Output|Models'!$F12,'Input|Rate of change'!$C$14:$O$14,0)))*IF('Calc|Opex forecast'!$E$63="$millions",1000000,IF('Output|Models'!I47="$000",1000,1))/IF($E12="$millions",1000000,IF($E12="$000",1000,1))) -> 325.3516898 | R12: =IF(R11="",0,'Calc|Opex forecast'!R63*IF('Calc|Opex forecast'!$F$63="nominal",LOOKUP($F12,Nominal_to_Real,'Input|Rate of change'!X$27:X$32),INDEX('Input|Rate of change'!$C$14:$O$22,MATCH('Calc|Opex forecast'!$F$63,'Input|Rate of change'!$C$14:$C$22,0),MATCH('Output|Models'!$F12,'Input|Rate of change'!$C$14:$O$14,0)))*IF('Calc|Opex forecast'!$E$63="$millions",1000000,IF('Output|Models'!J47="$000",1000,1))/IF($E12="$millions",1000000,IF($E12="$000",1000,1))) -> 332.0145531 | S12: =IF(S11="",0,'Calc|Opex forecast'!S63*IF('Calc|Opex forecast'!$F$63="nominal",LOOKUP($F12,Nominal_to_Real,'Input|Rate of change'!Y$27:Y$32),INDEX('Input|Rate of change'!$C$14:$O$22,MATCH('Calc|Opex forecast'!$F$63,'Input|Rate of change'!$C$14:$C$22,0),MATCH('Output|Models'!$F12,'Input|Rate of change'!$C$14:$O$14,0)))*IF('Calc|Opex forecast'!$E$63="$millions",1000000,IF('Output|Models'!K47="$000",1000,1))/IF($E12="$millions",1000000,IF($E12="$000",1000,1))) -> 337.8480445
S13: =SUM(O12:S12) -> 1629.872185
B15: End

Sheet Lookup|Tables
B1: =Index!$B$1 -> AER opex model | J1: Back to Index | L1: Key: | M1: Input | N1: External Link | O1: Internal Link | U1: Overall Check: | V1: ='Check|List'!$S$1 -> Ok
B2: =Index!$C$14 -> Lookup | Tables
B7: Unit Denominations
C9: =B7 -> Unit Denominations | D9: Source | G9: Ref
C10: Dollars | D10: AER | G10: $dollars
C11: Thousands | D11: AER | G11: $000
C12: Millions | D12: AER | G12: $millions
C14: Percent | D14: AER | G14: Per cent
C15: Unit | D15: AER | G15: unit
C16: Number | D16: AER | G16: number
C17: Factor | D17: AER | G17: factor
C19: Actual | D19: AER | G19: Actual
C20: Estimate | D20: AER | G20: Estimate
B22: Years
C24: =B22 -> Years | D24: Source | G24: Ref
C25: nominal | D25: AER | G25: nominal
C26: 2007-08 | D26: AER | G26: 2007-08
C27: 2008-09 | D27: AER | G27: 2008-09
C28: 2009-10 | D28: AER | G28: 2009-10
C29: 2010-11 | D29: AER | G29: 2010-11
C30: 2011-12 | D30: AER | G30: 2011-12
C31: 2012-13 | D31: AER | G31: 2012-13
C32: 2013-14 | D32: AER | G32: 2013-14
C33: 2014-15 | D33: AER | G33: 2014-15
C34: 2015-16 | D34: AER | G34: 2015-16
C35: 2016-17 | D35: AER | G35: 2016-17
C36: 2017-18 | D36: AER | G36: 2017-18
C37: 2018-19 | D37: AER | G37: 2018-19
C38: 2019-20 | D38: AER | G38: 2019-20
C39: 2020-21 | D39: AER | G39: 2020-21
C40: 2021-22 | D40: AER | G40: 2021-22
C41: 2022-23 | D41: AER | G41: 2022-23
C42: 2023-24 | D42: AER | G42: 2023-24
B44: End

Sheet Check|List
B1: =Index!$B$1 -> AER opex model | J1: Back to Index | L1: Key: | M1: Input | N1: External Link | O1: Internal Link | R1: Overall Check: | S1: =IF(COUNTIF(G10:G15,"Check")=0,"Ok","Check") -> Ok
B2: =Index!$C$15 -> Check | List
B7: Check List
C9: Sheet | D9: Source | E9: Unit | G9: Status
C10: =Index!C7 -> Input | General | D10: =C10 -> Input | General | E10: Ok/Check | G10: ='Input|General'!S1 -> OK
C11: =Index!C9 -> Input | Reported opex | D11: =C11 -> Input | Reported opex | E11: Ok/Check | G11: ='Input|Reported opex'!S1 -> OK
C12: =Index!C10 -> Input | Rate of change | D12: Input | Rate of change | E12: Ok/Check | G12: ='Input|Rate of change'!T1 -> Ok
C13: =Index!C11 -> Input | Step changes | D13: Input | Step changes | E13: Ok/Check | G13: ='Input|Step changes'!S1 -> OK
C14: =Index!C12 -> Calc | Opex Forecast | D14: Calc | Opex Forecast | E14: Ok/Check | G14: ='Calc|Opex forecast'!S1 -> n/a
C15: =Index!C13 -> Output | Models | D15: Output | Models | E15: Ok/Check | G15: ='Output|Models'!S1 -> OK
B17: End
